Workbook

Sheet Lookup
A1: Administration | B1: Electric | C1: BARKERTRANS
A2: Administration | B2: Electric | C2: BERRYCENTER
A3: Administration | B3: Electric | C3: BRADLEYPOLICESTATION
A4: Administration | B4: Electric | C4: CFISDNATATORIUM
A5: Administration | B5: Electric | C5: CY-FAIRCOMPLEXRETENTIONPOND
A6: Administration | B6: Electric | C6: CY-FAIRHS-BALLFIELD
A7: Administration | B7: Electric | C7: ELC1
A8: Administration | B8: Electric | C8: ELC2
A9: Administration | B9: Electric | C9: ELDRIDGETRANS
A10: Administration | B10: Electric | C10: EXHIBITCENTERSCIENCERESOURCEC
A11: Administration | B11: Electric | C11: EXHIBITCENTERTELGEAG
A12: Administration | B12: Electric | C12: FALCONCOMPLEX
A13: Administration | B13: Electric | C13: FOODPRODUCTIONCENTER
A14: Administration | B14: Electric | C14: FOODSERVICEWAREHOUSE
A15: Administration | B15: Electric | C15: ISCA
A16: Administration | B16: Electric | C16: ISCB
A17: Administration | B17: Electric | C17: ISCC
A18: Administration | B18: Electric | C18: ISCC-EXLIGHT
A19: Administration | B19: Electric | C19: ISCD
A20: Administration | B20: Electric | C20: ISCDATACENTER
A21: Administration | B21: Electric | C21: ISCSW
A22: Administration | B22: Electric | C22: ISCW
A23: Administration | B23: Electric | C23: JARVISCENTRALPLANT
A24: Administration | B24: Electric | C24: JERSEYVILLAGESTADIUM
A25: Administration | B25: Electric | C25: LANGHAMCREEKRETENTIONPOND
A26: Administration | B26: Electric | C26: MAINTENANCEOPER
A27: Administration | B27: Electric | C27: MILLSAPNATURETRAIL
A28: Administration | B28: Electric | C28: MILLSAPROPES
A29: Administration | B29: Electric | C29: PRIDGEONSTADIUM
A30: Administration | B30: Electric | C30: RECYCLECENTER
A31: Administration | B31: Electric | C31: SATELLITECOLDFOODWAREHOUSE
A32: Administration | B32: Electric | C32: TELGETRANS
A33: Administration | B33: Electric | C33: WESTGREENAGSCIENCECENTER
A34: Administration | B34: Electric | C34: WESTGREENTRANS
A35: Elementary School | B35: Electric | C35: ADAM-ES
A36: Elementary School | B36: Electric | C36: ANDREES
A37: Elementary School | B37: Electric | C37: AULTES
A38: Elementary School | B38: Electric | C38: BANEES
A39: Elementary School | B39: Electric | C39: BANGES
A40: Elementary School | B40: Electric | C40: BIRKESES
A41: Elementary School | B41: Electric | C41: BLACKES
A42: Elementary School | B42: Electric | C42: COPELANDES
A43: Elementary School | B43: Electric | C43: DANISHES
A44: Elementary School | B44: Electric | C44: DURYEAES
A45: Elementary School | B45: Electric | C45: EMERYES
A46: Elementary School | B46: Electric | C46: EMMOTTES
A47: Elementary School | B47: Electric | C47: FARNEYES
A48: Elementary School | B48: Electric | C48: FIESTES
A49: Elementary School | B49: Electric | C49: FRANCONEES
A50: Elementary School | B50: Electric | C50: FRAZIERES
A51: Elementary School | B51: Electric | C51: GLEASONES
A52: Elementary School | B52: Electric | C52: HAIRGROVEES
A53: Elementary School | B53: Electric | C53: HAMILTONES
A54: Elementary School | B54: Electric | C54: HANCOCKES
A55: Elementary School | B55: Electric | C55: HEMMENWAYES
A56: Elementary School | B56: Electric | C56: HOLBROOKES
A57: Elementary School | B57: Electric | C57: HOLMSLEYES
A58: Elementary School | B58: Electric | C58: HOOVERES
A59: Elementary School | B59: Electric | C59: HORNEES
A60: Elementary School | B60: Electric | C60: JOWELLES
A61: Elementary School | B61: Electric | C61: KEITHES
A62: Elementary School | B62: Electric | C62: KIRKES
A63: Elementary School | B63: Electric | C63: LAMKINES
A64: Elementary School | B64: Electric | C64: LEEES
A65: Elementary School | B65: Electric | C65: LIEDERES
A66: Elementary School | B66: Electric | C66: LOWERYES
A67: Elementary School | B67: Electric | C67: MATZKEES
A68: Elementary School | B68: Electric | C68: MATZKEMILLSES
A69: Elementary School | B69: Electric | C69: MCFEEES
A70: Elementary School | B70: Electric | C70: METCALFES
A71: Elementary School | B71: Electric | C71: MILLSAPES
A72: Elementary School | B72: Electric | C72: MOOREES
A73: Elementary School | B73: Electric | C73: OWENSES
A74: Elementary School | B74: Electric | C74: POPEES
A75: Elementary School | B75: Electric | C75: POSTES
A76: Elementary School | B76: Electric | C76: POSTMAES
A77: Elementary School | B77: Electric | C77: REEDES
A78: Elementary School | B78: Electric | C78: RENNELLES
A79: Elementary School | B79: Electric | C79: ROBINSONES
A80: Elementary School | B80: Electric | C80: ROBISONES
A81: Elementary School | B81: Electric | C81: SAMPSONES
A82: Elementary School | B82: Electric | C82: SHERIDANES
A83: Elementary School | B83: Electric | C83: SWENKEES
A84: Elementary School | B84: Electric | C84: TIPPSES
A85: Elementary School | B85: Electric | C85: WALKERES
A86: Elementary School | B86: Electric | C86: WARNERES
A87: Elementary School | B87: Electric | C87: WELLSES
A88: Elementary School | B88: Electric | C88: WILLBERNES
A89: Elementary School | B89: Electric | C89: WILSONES
A90: Elementary School | B90: Electric | C90: WOODARDES
A91: Elementary School | B91: Electric | C91: YEAGERES
A92: High School | B92: Electric | C92: BRIDGELANDHS
A93: High School | B93: Electric | C93: CY-CREEKHS
A94: High School | B94: Electric | C94: CY-FAIRHS
A95: High School | B95: Electric | C95: CY-FALLSHS
A96: High School | B96: Electric | C96: CY-LAKESHS
A97: High School | B97: Electric | C97: CY-PARKHS
A98: High School | B98: Electric | C98: CY-RANCHHS
A99: High School | B99: Electric | C99: CY-RIDGEHS
A100: High School | B100: Electric | C100: CY-SPRINGSHS
A101: High School | B101: Electric | C101: CY-WOODSHS
A102: High School | B102: Electric | C102: JERSEYVILLAGEHS
A103: High School | B103: Electric | C103: LANGHAMCREEKHS
A104: Middle School | B104: Electric | C104: ANTHONYMS
A105: Middle School | B105: Electric | C105: ARAGONMS
A106: Middle School | B106: Electric | C106: ARNOLDMS
A107: Middle School | B107: Electric | C107: BLEYLMS
A108: Middle School | B108: Electric | C108: CAMPBELLMS
A109: Middle School | B109: Electric | C109: COOKMS
A110: Middle School | B110: Electric | C110: DEANMS
A111: Middle School | B111: Electric | C111: GOODSONMS
A112: Middle School | B112: Electric | C112: HAMILTONMS
A113: Middle School | B113: Electric | C113: HOPPERMS
A114: Middle School | B114: Electric | C114: KAHLAMS
A115: Middle School | B115: Electric | C115: LABAYMS
A116: Middle School | B116: Electric | C116: SALYARDSMS
A117: Middle School | B117: Electric | C117: SMITHMS
A118: Middle School | B118: Electric | C118: SPILLANEMS
A119: Middle School | B119: Electric | C119: THORNTONMS
A120: Middle School | B120: Electric | C120: TRUITTMS
A121: Middle School | B121: Electric | C121: WATKINSMS
A122: Special School | B122: Electric | C122: WINDFERNANNEX
A123: Special School | B123: Electric | C123: ALCABC
A124: Special School | B124: Electric | C124: ALCWEST
A125: Special School | B125: Electric | C125: WINDFERNHS
A126: Special School | B126: Electric | C126: BRAUTIGAMCENTER
A127: Middle School | B127: nat Gas | C127: ROWEMS

Sheet Inst
A1: Use WD YY03 reports, paste values
A2: Make sure the total area closly resembles Dan Grozs Area (see Dan's spreadsheet)
A3: Refresh all pivot tables | C3: Start Here | D3: End Here

Sheet Sheet1
A1: School Type | B1: (All)
A3: Row Labels
A4: ADAM-ES
A5: ALCABC
A6: ALCWEST
A7: ANDREES
A8: ANTHONYMS
A9: ARAGONMS
A10: ARNOLDMS
A11: AULTES
A12: BANEES
A13: BANGES
A14: BARKERTRANS
A15: BERRYCENTER
A16: BIRKESES
A17: BLACKES
A18: BLEYLMS
A19: BRADLEYPOLICESTATION
A20: BRIDGELANDHS
A21: CAMPBELLMS
A22: CFISDNATATORIUM
A23: COOKMS
A24: COPELANDES
A25: CY-CREEKHS
A26: CY-FAIRCOMPLEX
A27: CY-FAIRCOMPLEXRETENTIONPOND
A28: CY-FAIRHS
A29: CY-FAIRHS-BALLFIELD
A30: CY-FALLSAGVOC
A31: CY-FALLSHS
A32: CY-LAKESHS
A33: CY-PARKHS
A34: CY-RANCHHS
A35: CY-RIDGEHS
A36: CY-SPRINGSHS
A37: CY-WOODSCARLTONCENTERKITCHEN
A38: CY-WOODSHS
A39: DANISHES
A40: DEANMS
A41: DURYEAES
A42: ELC1
A43: ELC2
A44: ELDRIDGETRANS
A45: EMERYES
A46: EMMOTTES
A47: EXHIBITCENTERSCIENCERESOURCEC
A48: EXHIBITCENTERTELGEAG
A49: FALCONCOMPLEX
A50: FARNEYES
A51: FIESTES
A52: FOODPRODUCTIONCENTER
A53: FOODSERVICEWAREHOUSE
A54: FRANCONEES
A55: FRAZIERES
A56: GLEASONES
A57: GOODSONMS
A58: HAIRGROVEES
A59: HAMILTONES
A60: HAMILTONMS
A61: HANCOCKES
A62: HEMMENWAYES
A63: HOLBROOKES
A64: HOLMSLEYES
A65: HOOVERES
A66: HOPPERMS
A67: HORNEES
A68: ISCA
A69: ISCB
A70: ISCC
A71: ISCC-EXLIGHT
A72: ISCD
A73: ISCDATACENTER
A74: ISCSW
A75: ISCW
A76: JARVISCENTRALPLANT
A77: JERSEYVILLAGEHS
A78: JERSEYVILLAGESTADIUM
A79: JOWELLES
A80: KAHLAMS
A81: KEITHES
A82: KIRKES
A83: LABAYMS
A84: LAMKINES
A85: LANGHAMCREEKHS
A86: LANGHAMCREEKRETENTIONPOND
A87: LEEES
A88: LIEDERES
A89: LOWERYES
A90: MAINTENANCEOPER
A91: MATZKEMILLSES
A92: MCFEEES
A93: METCALFES
A94: MILLSAPES
A95: MILLSAPNATURETRAIL
A96: MILLSAPROPES
A97: MOOREES
A98: OWENSES
A99: POPEES
A100: POSTES
A101: POSTMAES
A102: PRIDGEONSTADIUM
A103: RECYCLECENTER
A104: REEDES
A105: RENNELLES
A106: ROBINSONES
A107: ROBISONES
A108: SALYARDSMS
A109: SAMPSONES
A110: SATELLITECOLDFOODWAREHOUSE
A111: SHERIDANES
A112: SMITHMS
A113: SPILLANEMS
A114: SWENKEES
A115: TELGETRANS
A116: THORNTONMS
A117: TIPPSES
A118: TRUITTMS
A119: WALKERES
A120: WARNERES
A121: WATKINSMS
A122: WELLSES
A123: WESTGREENAGSCIENCECENTER
A124: WESTGREENTRANS
A125: WILLBERNES
A126: WILSONES
A127: WINDFERNANNEX
A128: WINDFERNHS
A129: WOODARDES
A130: YEAGERES
A131: BRAUTIGAMCENTER
A132: Fake
A133: Grand Total

Sheet DataYY03
A1: School Type | B1: Utility | C1: f | D1: Location | E1: Area | F1: Eff. Date | G1: Base Year | H1: Mmbtus | I1: Var [%] | J1: Base Year 2 | K1: Cost | L1: Var [%]3 | M1: Base Year 4 | N1: Current Year5 | O1: Var [%]6
A2: =INDEX(Lookup!$A$1:$A$126,MATCH(DataYY03!C2,Lookup!$C$1:$C$126,0)) -> Elementary School | B2: Electric | C2: ADAM-ES | D2: Houston, TX | E2: 103177 | F2: 1901-01-01 | G2: 3731.63616 | H2: 3353.3136 | I2: -10.13824885 | J2: 83845.05 | K2: 78525.25 | L2: -6.344799126 | M2: 5925 | N2: 5406 | O2: -8.759493671
A3: =INDEX(Lookup!$A$1:$A$126,MATCH(DataYY03!C3,Lookup!$C$1:$C$126,0)) -> Special School | B3: Electric | C3: ALCABC | D3: Houston, TX | E3: 56061 | F3: 1901-01-01 | G3: 2507.083008 | H3: 2126.467584 | I3: -15.18160439 | J3: 57548.75 | K3: 48177.24 | L3: -16.28447186 | M3: 4246 | N3: 3311 | O3: -22.02072539
A4: =INDEX(Lookup!$A$1:$A$126,MATCH(DataYY03!C4,Lookup!$C$1:$C$126,0)) -> Special School | B4: Electric | C4: ALCWEST | D4: Katy, TX | E4: 50839 | F4: 1901-01-01 | G4: 1845.100416 | H4: 1986.275328 | I4: 7.651340316 | J4: 40143.02 | K4: 38604.03 | L4: -3.833767365 | M4: 2632 | N4: 2082 | O4: -20.89665653
A5: =INDEX(Lookup!$A$1:$A$126,MATCH(DataYY03!C5,Lookup!$C$1:$C$126,0)) -> Elementary School | B5: Electric | C5: ANDREES | D5: Cypress, TX | E5: 106300 | F5: 2020-05-01 | G5: 3862.493184 | H5: 3430.124544 | I5: -11.19402985 | J5: 83470.42 | K5: 77047.82 | L5: -7.694462302 | M5: 5450 | N5: 5042 | O5: -7.486238532
A6: =INDEX(Lookup!$A$1:$A$126,MATCH(DataYY03!C6,Lookup!$C$1:$C$126,0)) -> Middle School | B6: Electric | C6: ANTHONYMS | D6: Cypress, TX | E6: 244123 | F6: 1901-01-01 | G6: 6930.392984 | H6: 6136.519532 | I6: -11.45495578 | J6: 148222.56 | K6: 134142.7 | L6: -9.499134275 | M6: 11233 | N6: 9007 | O6: -19.81661177
A7: =INDEX(Lookup!$A$1:$A$126,MATCH(DataYY03!C7,Lookup!$C$1:$C$126,0)) -> Middle School | B7: Electric | C7: ARAGONMS | D7: Houston, TX | E7: 219821 | F7: 1901-01-01 | G7: 7749.279808 | H7: 6806.813756 | I7: -12.16198247 | J7: 160667.83 | K7: 156677.74 | L7: -2.483440524 | M7: 10265 | N7: 9845 | O7: -4.091573307
A8: =INDEX(Lookup!$A$1:$A$126,MATCH(DataYY03!C8,Lookup!$C$1:$C$126,0)) -> Middle School | B8: Electric | C8: ARNOLDMS | D8: Cypress, TX | E8: 212235 | F8: 2020-05-01 | G8: 7975.051848 | H8: 7444.577972 | I8: -6.651666799 | J8: 145448.18 | K8: 131737.76 | L8: -9.42632627 | M8: 6341 | N8: 5700 | O8: -10.10881564
A9: =INDEX(Lookup!$A$1:$A$126,MATCH(DataYY03!C9,Lookup!$C$1:$C$126,0)) -> Elementary School | B9: Electric | C9: AULTES | D9: Cypress, TX | E9: 91912 | F9: 2020-05-01 | G9: 1956.140544 | H9: 1851.323904 | I9: -5.358338915 | J9: 45215.28 | K9: 42943.22 | L9: -5.024982705 | M9: 2973 | N9: 2875 | O9: -3.29633367
A10: =INDEX(Lookup!$A$1:$A$126,MATCH(DataYY03!C10,Lookup!$C$1:$C$126,0)) -> Elementary School | B10: Electric | C10: BANEES | D10: Houston, TX | E10: 106804 | F10: 1901-01-01 | G10: 3502.841088 | H10: 3209.354496 | I10: -8.378530017 | J10: 81293.87 | K10: 75120.38 | L10: -7.594041224 | M10: 5619 | N10: 4962 | O10: -11.69247197
A11: =INDEX(Lookup!$A$1:$A$126,MATCH(DataYY03!C11,Lookup!$C$1:$C$126,0)) -> Elementary School | B11: Electric | C11: BANGES | D11: Houston, TX | E11: 89313 | F11: 2020-08-01 | G11: 2500.85952 | H11: 2399.645952 | I11: -4.047151277 | J11: 57222.27 | K11: 53737.17 | L11: -6.090460934 | M11: 3727 | N11: 3501 | O11: -6.063858331
A12: =INDEX(Lookup!$A$1:$A$126,MATCH(DataYY03!C12,Lookup!$C$1:$C$126,0)) -> Administration | B12: Electric | C12: BARKERTRANS | D12: Houston, TX | E12: 22677 | F12: 1901-01-01 | G12: 1149.052416 | H12: 1060.613376 | I12: -7.696693273 | J12: 22460.85 | K12: 21157.16 | L12: -5.80427722 | M12: 1297 | N12: 1208 | O12: -6.861989206
A13: =INDEX(Lookup!$A$1:$A$126,MATCH(DataYY03!C13,Lookup!$C$1:$C$126,0)) -> Administration | B13: Electric | C13: BERRYCENTER | D13: Cypress, TX | E13: 491434 | F13: 1901-01-01 | G13: 18486.7005 | H13: 15252.89562 | I13: -17.49260171 | J13: 359401.35 | K13: 323876.95 | L13: -9.884325699 | M13: 18054 | N13: 16009 | O13: -11.32712972
A14: =INDEX(Lookup!$A$1:$A$126,MATCH(DataYY03!C14,Lookup!$C$1:$C$126,0)) -> Elementary School | B14: Electric | C14: BIRKESES | D14: Houston, TX | E14: 104952 | F14: 2020-08-01 | G14: 4208.388096 | H14: 4227.386112 | I14: 0.4514321295 | J14: 91267.09 | K14: 91830.34 | L14: 0.6171446904 | M14: 6244 | N14: 5851 | O14: -6.294042281
A15: =INDEX(Lookup!$A$1:$A$126,MATCH(DataYY03!C15,Lookup!$C$1:$C$126,0)) -> Elementary School | B15: Electric | C15: BLACKES | D15: Cypress, TX | E15: 99456 | F15: 2020-08-01 | G15: 3103.882752 | H15: 2955.174144 | I15: -4.791051076 | J15: 71456.06 | K15: 69063.33 | L15: -3.34853335 | M15: 5045 | N15: 4696 | O15: -6.917740337
A16: =INDEX(Lookup!$A$1:$A$126,MATCH(DataYY03!C16,Lookup!$C$1:$C$126,0)) -> Middle School | B16: Electric | C16: BLEYLMS | D16: Houston, TX | E16: 229363 | F16: 1901-01-01 | G16: 6747.902164 | H16: 6594.983148 | I16: -2.266171208 | J16: 140671.25 | K16: 133101.68 | L16: -5.381035571 | M16: 7303 | N16: 6820 | O16: -6.613720389
A17: =INDEX(Lookup!$A$1:$A$126,MATCH(DataYY03!C17,Lookup!$C$1:$C$126,0)) -> Administration | B17: Electric | C17: BRADLEYPOLICESTATION | D17: Cypress, TX | E17: 19680 | F17: 2020-05-01 | G17: 1957.778304 | H17: 1952.865024 | I17: -0.2509620211 | J17: 33906.99 | K17: 33833.4 | L17: -0.2170348946 | M17: 1507 | N17: 1504 | O17: -0.199071002
A18: =INDEX(Lookup!$A$1:$A$126,MATCH(DataYY03!C18,Lookup!$C$1:$C$126,0)) -> Special School | B18: Electric | C18: BRAUTIGAMCENTER | D18: Houston, TX | E18: 85895 | F18: 43952 | G18: 2646.538272 | H18: 2829.329348 | I18: 6.90679889 | J18: 57831.59 | K18: 68263.7 | L18: 18.03877431 | M18: 3136 | N18: 4612 | O18: 47.06632653
A19: =INDEX(Lookup!$A$1:$A$126,MATCH(DataYY03!C19,Lookup!$C$1:$C$126,0)) -> High School | B19: Electric | C19: BRIDGELANDHS | D19: Cypress, TX | E19: 573468 | F19: 1901-01-01 | G19: 18077.15132 | H19: 17029.32271 | I19: -5.796425518 | J19: 378802.98 | K19: 360504.21 | L19: -4.830682694 | M19: 25360 | N19: 24410 | O19: -3.746056782
A20: =INDEX(Lookup!$A$1:$A$126,MATCH(DataYY03!C20,Lookup!$C$1:$C$126,0)) -> Middle School | B20: Electric | C20: CAMPBELLMS | D20: Houston, TX | E20: 228967 | F20: 2020-08-01 | G20: 8693.079952 | H20: 8529.887404 | I20: -1.877269609 | J20: 185774.22 | K20: 165320.09 | L20: -11.01020906 | M20: 10789 | N20: 10315 | O20: -4.393363611
A21: =INDEX(Lookup!$A$1:$A$126,MATCH(DataYY03!C21,Lookup!$C$1:$C$126,0)) -> Administration | B21: Electric | C21: CFISDNATATORIUM | D21: Houston, TX | E21: 49471 | F21: 1901-01-01 | G21: 12853.799 | H21: 11175.21783 | I21: -13.05902767 | J21: 229066.48 | K21: 208076.84 | L21: -9.163121553 | M21: 9206 | N21: 8344 | O21: -9.363458614
A22: =INDEX(Lookup!$A$1:$A$126,MATCH(DataYY03!C22,Lookup!$C$1:$C$126,0)) -> Middle School | B22: Electric | C22: COOKMS | D22: Houston, TX | E22: 205797 | F22: 2020-05-01 | G22: 6967.979576 | H22: 5719.542424 | I22: -17.91677399 | J22: 142773.51 | K22: 120222.25 | L22: -15.79512894 | M22: 8169 | N22: 8092 | O22: -0.942587832
A23: =INDEX(Lookup!$A$1:$A$126,MATCH(DataYY03!C23,Lookup!$C$1:$C$126,0)) -> Elementary School | B23: Electric | C23: COPELANDES | D23: Houston, TX | E23: 86318 | F23: 1901-01-01 | G23: 3193.632 | H23: 3080.62656 | I23: -3.538461538 | J23: 74828.91 | K23: 72677.56 | L23: -2.875025174 | M23: 5602 | N23: 5149 | O23: -8.086397715
A24: =INDEX(Lookup!$A$1:$A$126,MATCH(DataYY03!C24,Lookup!$C$1:$C$126,0)) -> High School | B24: Electric | C24: CY-CREEKHS | D24: Houston, TX | E24: 527749 | F24: 2020-05-01 | G24: 19897.87641 | H24: 16641.03711 | I24: -16.36777329 | J24: 387714.03 | K24: 346995.09 | L24: -10.50231275 | M24: 22271 | N24: 18068 | O24: -18.87207579 | Q24: =H24*1000000 -> 16641037108 | R24: =Q24/1000/3.412 -> 4877209
A25: =INDEX(Lookup!$A$1:$A$126,MATCH(DataYY03!C25,Lookup!$C$1:$C$126,0)) -> Administration | B25: Electric | C25: CY-FAIRCOMPLEXRETENTIONPOND | D25: Cypress, TX | E25: 0 | F25: 1901-01-01 | G25: 3.831676 | H25: 5.974412 | I25: 55.92163847 | J25: 1002.49 | K25: 1338.86 | L25: 33.5534519 | M25: 116 | N25: 157 | O25: 35.34482759 | R25: 0.18
A26: =INDEX(Lookup!$A$1:$A$126,MATCH(DataYY03!C26,Lookup!$C$1:$C$126,0)) -> High School | B26: Electric | C26: CY-FAIRHS | D26: Cypress, TX | E26: 507380 | F26: 43861 | G26: 23366.59408 | H26: 22065.79638 | I26: -5.566911889 | J26: 416905.79 | K26: 418622.59 | L26: 0.4117956721 | M26: 22785 | N26: 20378 | O26: -10.56396752 | R26: =R24*R25 -> 877897.62
A27: =INDEX(Lookup!$A$1:$A$126,MATCH(DataYY03!C27,Lookup!$C$1:$C$126,0)) -> Administration | B27: Electric | C27: CY-FAIRHS-BALLFIELD | D27: Cypress, TX | E27: 0 | F27: 1901-01-01 | G27: 145.433088 | H27: 116.936064 | I27: -19.59459459 | J27: 17176.48 | K27: 10593.71 | L27: -38.32432489 | M27: 2304 | N27: 1185 | O27: -48.56770833 | R27: 0.07
A28: =INDEX(Lookup!$A$1:$A$126,MATCH(DataYY03!C28,Lookup!$C$1:$C$126,0)) -> High School | B28: Electric | C28: CY-FALLSHS | D28: Houston, TX | E28: 567967 | F28: 2020-05-01 | G28: 15574.64722 | H28: 14896.31773 | I28: -4.355344135 | J28: 318614.37 | K28: 299903.41 | L28: -5.872603926 | M28: 16460 | N28: 14959 | O28: -9.119076549 | R28: =R26*R27 -> 61452.8334
A29: =INDEX(Lookup!$A$1:$A$126,MATCH(DataYY03!C29,Lookup!$C$1:$C$126,0)) -> High School | B29: Electric | C29: CY-LAKESHS | D29: Katy, TX | E29: 514068 | F29: 2020-05-01 | G29: 20200.84154 | H29: 20344.76993 | I29: 0.7124871295 | J29: 386366.43 | K29: 369621.59 | L29: -4.333927251 | M29: 21996 | N29: 19867 | O29: -9.679032551
A30: =INDEX(Lookup!$A$1:$A$126,MATCH(DataYY03!C30,Lookup!$C$1:$C$126,0)) -> High School | B30: Electric | C30: CY-PARKHS | D30: Cypress, TX | E30: =590057+E418 -> 764731 | F30: 1901-01-01 | G30: 19319.10226 | H30: 24297.49687 | I30: 25.76928545 | J30: 418133.42 | K30: 505614.99 | L30: 20.92192726 | M30: 30334 | N30: 30488 | O30: 0.5076811499
A31: =INDEX(Lookup!$A$1:$A$126,MATCH(DataYY03!C31,Lookup!$C$1:$C$126,0)) -> High School | B31: Electric | C31: CY-RANCHHS | D31: Cypress, TX | E31: 527131 | F31: 2020-05-01 | G31: 22826.73721 | H31: 21376.7498 | I31: -6.352144815 | J31: 526022.69 | K31: 484117 | L31: -7.966517566 | M31: 39991 | N31: 36641 | O31: -8.376884799
A32: =INDEX(Lookup!$A$1:$A$126,MATCH(DataYY03!C32,Lookup!$C$1:$C$126,0)) -> High School | B32: Electric | C32: CY-RIDGEHS | D32: Houston, TX | E32: 502564 | F32: 2020-08-01 | G32: 17884.13448 | H32: 16719.03202 | I32: -6.514726588 | J32: 346177.65 | K32: 324715.51 | L32: -6.199747442 | M32: 19058 | N32: 18952 | O32: -0.5561968727
A33: =INDEX(Lookup!$A$1:$A$126,MATCH(DataYY03!C33,Lookup!$C$1:$C$126,0)) -> High School | B33: Electric | C33: CY-SPRINGSHS | D33: Cypress, TX | E33: 478615 | F33: 2020-08-01 | G33: 18138.34895 | H33: 16588.06581 | I33: -8.546991505 | J33: 361916.91 | K33: 307205.39 | L33: -15.1171494 | M33: 18739 | N33: 17930 | O33: -4.317199424
A34: =INDEX(Lookup!$A$1:$A$126,MATCH(DataYY03!C34,Lookup!$C$1:$C$126,0)) -> High School | B34: Electric | C34: CY-WOODSHS | D34: Cypress, TX | E34: 535914 | F34: 1901-01-01 | G34: 12107.42058 | H34: 10387.52351 | I34: -14.20531371 | J34: 227934.11 | K34: 201961.35 | L34: -11.39485442 | M34: 12959 | N34: 11506 | O34: -11.2122849
A35: =INDEX(Lookup!$A$1:$A$126,MATCH(DataYY03!C35,Lookup!$C$1:$C$126,0)) -> Elementary School | B35: Electric | C35: DANISHES | D35: Houston, TX | E35: 98052 | F35: 2020-05-01 | G35: 3787.633904 | H35: 3691.412092 | I35: -2.540420073 | J35: 83083.9 | K35: 85723.35 | L35: 3.176848944 | M35: 4776 | N35: 4778 | O35: 0.0418760469
A36: =INDEX(Lookup!$A$1:$A$126,MATCH(DataYY03!C36,Lookup!$C$1:$C$126,0)) -> Middle School | B36: Electric | C36: DEANMS | D36: Houston, TX | E36: 222788 | F36: 2020-08-01 | G36: 7904.481452 | H36: 7498.269204 | I36: -5.13901197 | J36: 168256.08 | K36: 164014.47 | L36: -2.520925247 | M36: 10109 | N36: 9640 | O36: -4.639430211
A37: =INDEX(Lookup!$A$1:$A$126,MATCH(DataYY03!C37,Lookup!$C$1:$C$126,0)) -> Elementary School | B37: Electric | C37: DURYEAES | D37: Katy, TX | E37: 96423 | F37: 2020-05-01 | G37: 2910.627072 | H37: 2652.516096 | I37: -8.867882062 | J37: 69577.21 | K37: 65018.23 | L37: -6.552404156 | M37: 5167 | N37: 4636 | O37: -10.27675634
A38: =INDEX(Lookup!$A$1:$A$126,MATCH(DataYY03!C38,Lookup!$C$1:$C$126,0)) -> Administration | B38: Electric | C38: ELC1 | D38: Houston, TX | E38: 6832 | F38: 1901-01-01 | G38: 254.39872 | H38: 173.60256 | I38: -31.75965665 | J38: 6357.23 | K38: 5087.84 | L38: -19.96765887 | M38: 456 | N38: 395 | O38: -13.37719298
A39: =INDEX(Lookup!$A$1:$A$126,MATCH(DataYY03!C39,Lookup!$C$1:$C$126,0)) -> Administration | B39: Electric | C39: ELC2 | D39: Houston, TX | E39: 4573 | F39: 1901-01-01 | G39: 165.946032 | H39: 154.993512 | I39: -6.600049346 | J39: 4933.93 | K39: 4504.96 | L39: -8.694286299 | M39: 389 | N39: 352 | O39: -9.511568123
A40: =INDEX(Lookup!$A$1:$A$126,MATCH(DataYY03!C40,Lookup!$C$1:$C$126,0)) -> Administration | B40: Electric | C40: ELDRIDGETRANS | D40: Houston, TX | E40: 26451 | F40: 1901-01-01 | G40: 2409.472512 | H40: 2389.819392 | I40: -0.8156606852 | J40: 43795.78 | K40: 43564.16 | L40: -0.5288637398 | M40: 2202 | N40: 2167 | O40: -1.589464124
A41: =INDEX(Lookup!$A$1:$A$126,MATCH(DataYY03!C41,Lookup!$C$1:$C$126,0)) -> Elementary School | B41: Electric | C41: EMERYES | D41: Katy, TX | E41: 98438 | F41: 2020-08-01 | G41: 2903.74848 | H41: 2722.4348 | I41: -6.244124835 | J41: 69080.12 | K41: 64002.2 | L41: -7.350768933 | M41: 5198 | N41: 4440 | O41: -14.58253174
A42: =INDEX(Lookup!$A$1:$A$126,MATCH(DataYY03!C42,Lookup!$C$1:$C$126,0)) -> Elementary School | B42: Electric | C42: EMMOTTES | D42: Houston, TX | E42: 77394 | F42: 2020-05-01 | G42: 2308.586496 | H42: 2096.3328 | I42: -9.194097616 | J42: 57041.2 | K42: 52436.11 | L42: -8.073269847 | M42: 4313 | N42: 3780 | O42: -12.35798748
A43: =INDEX(Lookup!$A$1:$A$126,MATCH(DataYY03!C43,Lookup!$C$1:$C$126,0)) -> Administration | B43: Electric | C43: EXHIBITCENTERSCIENCERESOURCEC | D43: Cypress, TX | E43: 72198 | F43: 1901-01-01 | G43: 3174.5248 | H43: 2713.76832 | I43: -14.51418745 | J43: 59183.66 | K43: 52082.99 | L43: -11.99768652 | M43: 3172 | N43: 2869 | O43: -9.552332913
A44: =INDEX(Lookup!$A$1:$A$126,MATCH(DataYY03!C44,Lookup!$C$1:$C$126,0)) -> Administration | B44: Electric | C44: EXHIBITCENTERTELGEAG | D44: Cypress, TX | E44: 33198 | F44: 1901-01-01 | G44: 1062.585512 | H44: 1096.732808 | I44: 3.213604516 | J44: 18092.54 | K44: 17970.35 | L44: -0.6753612262 | M44: 759 | N44: 707 | O44: -6.851119895
A45: =INDEX(Lookup!$A$1:$A$126,MATCH(DataYY03!C45,Lookup!$C$1:$C$126,0)) -> Administration | B45: Electric | C45: FALCONCOMPLEX | D45: Houston, TX | E45: 0 | F45: 1901-01-01 | G45: 2674.46208 | H45: 2745.213312 | I45: 2.645437844 | J45: 48599.33 | K45: 49138.06 | L45: 1.108513224 | M45: 2402 | N45: 2371 | O45: -1.290591174
A46: =INDEX(Lookup!$A$1:$A$126,MATCH(DataYY03!C46,Lookup!$C$1:$C$126,0)) -> Elementary School | B46: Electric | C46: FARNEYES | D46: Cypress, TX | E46: 95036 | F46: 1901-01-01 | G46: 3657.11808 | H46: 3637.46496 | I46: -0.5373936408 | J46: 84291.17 | K46: 85777.26 | L46: 1.763043507 | M46: 6279 | N46: 6153 | O46: -2.006688963
A47: =INDEX(Lookup!$A$1:$A$126,MATCH(DataYY03!C47,Lookup!$C$1:$C$126,0)) -> Elementary School | B47: Electric | C47: FIESTES | D47: Houston, TX | E47: 91621 | F47: 1901-01-01 | G47: 2728.835712 | H47: 2485.137024 | I47: -8.93050054 | J47: 60086.95 | K47: 54819.45 | L47: -8.766462601 | M47: 3855 | N47: 3490 | O47: -9.468223087
A48: =INDEX(Lookup!$A$1:$A$126,MATCH(DataYY03!C48,Lookup!$C$1:$C$126,0)) -> Administration | B48: Electric | C48: FOODPRODUCTIONCENTER | D48: Houston, TX | E48: 57684 | F48: 1901-01-01 | G48: 13226.83296 | H48: 12633.56122 | I48: -4.485365 | J48: 243174.9 | K48: 217540.12 | L48: -10.54170476 | M48: 8311 | N48: 7661 | O48: -7.820960173
A49: =INDEX(Lookup!$A$1:$A$126,MATCH(DataYY03!C49,Lookup!$C$1:$C$126,0)) -> Administration | B49: Electric | C49: FOODSERVICEWAREHOUSE | D49: Houston, TX | E49: 48487 | F49: 2020-05-01 | G49: 2563.749504 | H49: 2475.310464 | I49: -3.449597547 | J49: 46707.84 | K49: 45085.11 | L49: -3.474213323 | M49: 2255 | N49: 2208 | O49: -2.084257206
A50: =INDEX(Lookup!$A$1:$A$126,MATCH(DataYY03!C50,Lookup!$C$1:$C$126,0)) -> Elementary School | B50: Electric | C50: FRANCONEES | D50: Houston, TX | E50: 90518 | F50: 1901-01-01 | G50: 3164.01584 | H50: 2963.690496 | I50: -6.331363499 | J50: 72669.31 | K50: 70080.82 | L50: -3.56201263 | M50: 5170 | N50: 4882 | O50: -5.570599613
A51: =INDEX(Lookup!$A$1:$A$126,MATCH(DataYY03!C51,Lookup!$C$1:$C$126,0)) -> Elementary School | B51: Electric | C51: FRAZIERES | D51: Houston, TX | E51: 85844 | F51: 1901-01-01 | G51: 3538.714856 | H51: 3469.754924 | I51: -1.948728135 | J51: 79938.49 | K51: 80659.9 | L51: 0.9024563761 | M51: 5273 | N51: 5039 | O51: -4.437701498
A52: =INDEX(Lookup!$A$1:$A$126,MATCH(DataYY03!C52,Lookup!$C$1:$C$126,0)) -> Elementary School | B52: Electric | C52: GLEASONES | D52: Houston, TX | E52: 91424 | F52: 1901-01-01 | G52: 3704.61312 | H52: 3955.1904 | I52: 6.763925729 | J52: 78116.04 | K52: 81889.66 | L52: 4.830787633 | M52: 5092 | N52: 4996 | O52: -1.885310291
A53: =INDEX(Lookup!$A$1:$A$126,MATCH(DataYY03!C53,Lookup!$C$1:$C$126,0)) -> Middle School | B53: Electric | C53: GOODSONMS | D53: Cypress, TX | E53: 218801 | F53: 1901-01-01 | G53: 6697.885656 | H53: 6166.292644 | I53: -7.936728683 | J53: 138128.37 | K53: 129052.11 | L53: -6.570887646 | M53: 9034 | N53: 8162 | O53: -9.652424175
A54: =INDEX(Lookup!$A$1:$A$126,MATCH(DataYY03!C54,Lookup!$C$1:$C$126,0)) -> Elementary School | B54: Electric | C54: HAIRGROVEES | D54: Houston, TX | E54: 85052 | F54: 1901-01-01 | G54: 3156.291072 | H54: 3186.425856 | I54: 0.9547530095 | J54: 70345.92 | K54: 69334.51 | L54: -1.437766398 | M54: 4910 | N54: 4478 | O54: -8.798370672
A55: =INDEX(Lookup!$A$1:$A$126,MATCH(DataYY03!C55,Lookup!$C$1:$C$126,0)) -> Elementary School | B55: Electric | C55: HAMILTONES | D55: Cypress, TX | E55: 89692 | F55: 2020-08-01 | G55: 2306.293632 | H55: 2278.779264 | I55: -1.193012356 | J55: 54417.7 | K55: 53457.9 | L55: -1.763764363 | M55: 3842 | N55: 3620 | O55: -5.7782405
A56: =INDEX(Lookup!$A$1:$A$126,MATCH(DataYY03!C56,Lookup!$C$1:$C$126,0)) -> Middle School | B56: Electric | C56: HAMILTONMS | D56: Cypress, TX | E56: 194726 | F56: 2020-08-01 | G56: 8676.541988 | H56: 6819.032128 | I56: -21.40841204 | J56: 165118.34 | K56: 133975 | L56: -18.86122402 | M56: 8717 | N56: 6293 | O56: -27.80773202
A57: =INDEX(Lookup!$A$1:$A$126,MATCH(DataYY03!C57,Lookup!$C$1:$C$126,0)) -> Elementary School | B57: Electric | C57: HANCOCKES | D57: Houston, TX | E57: 88795 | F57: 1901-01-01 | G57: 3303.689472 | H57: 2949.223616 | I57: -10.72939388 | J57: 77133.4 | K57: 71990.07 | L57: -6.668097089 | M57: 5527 | N57: 5029 | O57: -9.010313009
A58: =INDEX(Lookup!$A$1:$A$126,MATCH(DataYY03!C58,Lookup!$C$1:$C$126,0)) -> Elementary School | B58: Electric | C58: HEMMENWAYES | D58: Katy, TX | E58: 101091 | F58: 2020-08-01 | G58: 2868.700416 | H58: 2934.86592 | I58: 2.306462663 | J58: 73350.21 | K58: 74460.98 | L58: 1.514337859 | M58: 5804 | N58: 5509 | O58: -5.082701585
A59: =INDEX(Lookup!$A$1:$A$126,MATCH(DataYY03!C59,Lookup!$C$1:$C$126,0)) -> Elementary School | B59: Electric | C59: HOLBROOKES | D59: Houston, TX | E59: 99937 | F59: 1901-01-01 | G59: 3578.833152 | H59: 3509.392128 | I59: -1.940325828 | J59: 84514.37 | K59: 79219.9 | L59: -6.264579621 | M59: 5903 | N59: 5070 | O59: -14.11146874
A60: =INDEX(Lookup!$A$1:$A$126,MATCH(DataYY03!C60,Lookup!$C$1:$C$126,0)) -> Elementary School | B60: Electric | C60: HOLMSLEYES | D60: Houston, TX | E60: 81704 | F60: 2020-08-01 | G60: 2199.184128 | H60: 2119.26144 | I60: -3.6341972 | J60: 52042.35 | K60: 50511.25 | L60: -2.942027022 | M60: 3537 | N60: 5266 | O60: 48.88323438
A61: =INDEX(Lookup!$A$1:$A$126,MATCH(DataYY03!C61,Lookup!$C$1:$C$126,0)) -> Elementary School | B61: Electric | C61: HOOVERES | D61: Katy, TX | E61: 112519 | F61: 1901-01-01 | G61: 2694.93408 | H61: 2849.7024 | I61: 5.742935278 | J61: 65620.17 | K61: 65251.63 | L61: -0.5616260976 | M61: 4905 | N61: 4222 | O61: -13.92456677
A62: =INDEX(Lookup!$A$1:$A$126,MATCH(DataYY03!C62,Lookup!$C$1:$C$126,0)) -> Middle School | B62: Electric | C62: HOPPERMS | D62: Cypress, TX | E62: 226178 | F62: 1901-01-01 | G62: 7629.644852 | H62: 7239.284756 | I62: -5.116359982 | J62: 169315.67 | K62: 152027.76 | L62: -10.21046073 | M62: 9878 | N62: 9319 | O62: -5.659040292
A63: =INDEX(Lookup!$A$1:$A$126,MATCH(DataYY03!C63,Lookup!$C$1:$C$126,0)) -> Elementary School | B63: Electric | C63: HORNEES | D63: Houston, TX | E63: 87881 | F63: 1901-01-01 | G63: 3235.558656 | H63: 3271.589376 | I63: 1.113585746 | J63: 71593.55 | K63: 71570.35 | L63: -0.03240515382 | M63: 5001 | N63: 4589 | O63: -8.23835233
A64: =INDEX(Lookup!$A$1:$A$126,MATCH(DataYY03!C64,Lookup!$C$1:$C$126,0)) -> Administration | B64: Electric | C64: ISCA | D64: Houston, TX | E64: 132467 | F64: 1901-01-01 | G64: 2130.52104 | H64: 2107.2512 | I64: -1.092213574 | J64: 44771.25 | K64: 44709.46 | L64: -0.1380126755 | M64: 2831 | N64: 2761 | O64: -2.472624514
A65: =INDEX(Lookup!$A$1:$A$126,MATCH(DataYY03!C65,Lookup!$C$1:$C$126,0)) -> Administration | B65: Electric | C65: ISCB | D65: Houston, TX | E65: 0 | F65: 1901-01-01 | G65: 2025.90912 | H65: 2011.44224 | I65: -0.7140932363 | J65: 40349.96 | K65: 40281.02 | L65: -0.170855188 | M65: 2302 | N65: 2295 | O65: -0.3040834057
A66: =INDEX(Lookup!$A$1:$A$126,MATCH(DataYY03!C66,Lookup!$C$1:$C$126,0)) -> Administration | B66: Electric | C66: ISCC | D66: Houston, TX | E66: 0 | F66: 1901-01-01 | G66: 3389.07136 | H66: 3464.40832 | I66: 2.222938144 | J66: 63560.06 | K66: 64376.67 | L66: 1.284784816 | M66: 3368 | N66: 3298 | O66: -2.078384798
A67: =INDEX(Lookup!$A$1:$A$126,MATCH(DataYY03!C67,Lookup!$C$1:$C$126,0)) -> Administration | B67: Electric | C67: ISCC-EXLIGHT | D67: Houston, TX | E67: 0 | F67: 1901-01-01 | G67: 24.97584 | H67: 24.97584 | I67: 0 | J67: 1130.37 | K67: 960.79 | L67: -15.00216743 | M67: 0 | N67: 0 | O67: 0
A68: =INDEX(Lookup!$A$1:$A$126,MATCH(DataYY03!C68,Lookup!$C$1:$C$126,0)) -> Administration | B68: Electric | C68: ISCD | D68: Houston, TX | E68: 0 | F68: 1901-01-01 | G68: 93.76176 | H68: 86.93776 | I68: -7.278020378 | J68: 2824.22 | K68: 2712.26 | L68: -3.964280403 | M68: 224 | N68: 209 | O68: -6.696428571
A69: =INDEX(Lookup!$A$1:$A$126,MATCH(DataYY03!C69,Lookup!$C$1:$C$126,0)) -> Administration | B69: Electric | C69: ISCDATACENTER | D69: Houston, TX | E69: 0 | F69: 1901-01-01 | G69: 757.893912 | H69: 889.812068 | I69: 17.40588675 | J69: 12612.88 | K69: 13672 | L69: 8.397130552 | M69: 410 | N69: 415 | O69: 1.219512195
A70: =INDEX(Lookup!$A$1:$A$126,MATCH(DataYY03!C70,Lookup!$C$1:$C$126,0)) -> Administration | B70: Electric | C70: ISCSW | D70: Houston, TX | E70: 0 | F70: 1901-01-01 | G70: 274.761536 | H70: 249.21248 | I70: -9.298629048 | J70: 5509.41 | K70: 5061.64 | L70: -8.12736754 | M70: 301 | N70: 282 | O70: -6.312292359
A71: =INDEX(Lookup!$A$1:$A$126,MATCH(DataYY03!C71,Lookup!$C$1:$C$126,0)) -> Administration | B71: Electric | C71: ISCW | D71: Houston, TX | E71: 35364 | F71: 1901-01-01 | G71: 1984.310016 | H71: 2085.196032 | I71: 5.0841862 | J71: 42989.23 | K71: 44934.02 | L71: 4.523900521 | M71: 2875 | N71: 2850 | O71: -0.8695652174
A72: =INDEX(Lookup!$A$1:$A$126,MATCH(DataYY03!C72,Lookup!$C$1:$C$126,0)) -> Administration | B72: Electric | C72: JARVISCENTRALPLANT | D72: Cypress, TX | E72: 12152 | F72: 1901-01-01 | G72: 9624.559364 | H72: 10312.46292 | I72: 7.147377142 | J72: 245349.63 | K72: 259299.6 | L72: 5.685751391 | M72: 23703 | N72: 21156 | O72: -10.74547526
A73: =INDEX(Lookup!$A$1:$A$126,MATCH(DataYY03!C73,Lookup!$C$1:$C$126,0)) -> High School | B73: Electric | C73: JERSEYVILLAGEHS | D73: Houston, TX | E73: 513473 | F73: 2020-05-01 | G73: 16243.679 | H73: 15992.46709 | I73: -1.546521031 | J73: 340694.22 | K73: 331252.59 | L73: -2.771291512 | M73: 20352 | N73: 19858 | O73: -2.427279874
A74: =INDEX(Lookup!$A$1:$A$126,MATCH(DataYY03!C74,Lookup!$C$1:$C$126,0)) -> Administration | B74: Electric | C74: JERSEYVILLAGESTADIUM | D74: Houston, TX | E74: 2385 | F74: 1901-01-01 | G74: 186.049536 | H74: 192.313968 | I74: 3.367077465 | J74: 11230.31 | K74: 7915.62 | L74: -29.51556992 | M74: 1182 | N74: 2055 | O74: 73.85786802
A75: =INDEX(Lookup!$A$1:$A$126,MATCH(DataYY03!C75,Lookup!$C$1:$C$126,0)) -> Elementary School | B75: Electric | C75: JOWELLES | D75: Katy, TX | E75: 73726 | F75: 1901-01-01 | G75: 2009.203968 | H75: 1875.562752 | I75: -6.651450929 | J75: 51231.24 | K75: 48531.22 | L75: -5.27026088 | M75: 3793 | N75: 3447 | O75: -9.122066965
A76: =INDEX(Lookup!$A$1:$A$126,MATCH(DataYY03!C76,Lookup!$C$1:$C$126,0)) -> Middle School | B76: Electric | C76: KAHLAMS | D76: Houston, TX | E76: 221601 | F76: 1901-01-01 | G76: 7539.639704 | H76: 7317.139772 | I76: -2.951068496 | J76: 170681.03 | K76: 173693.53 | L76: 1.764988177 | M76: 11155 | N76: 10495 | O76: -5.916629314
A77: =INDEX(Lookup!$A$1:$A$126,MATCH(DataYY03!C77,Lookup!$C$1:$C$126,0)) -> Elementary School | B77: Electric | C77: KEITHES | D77: Cypress, TX | E77: 95518 | F77: 1901-01-01 | G77: 2934.210816 | H77: 2811.051264 | I77: -4.197365483 | J77: 68392.69 | K77: 65263.52 | L77: -4.57529891 | M77: 4972 | N77: 4383 | O77: -11.8463395
A78: =INDEX(Lookup!$A$1:$A$126,MATCH(DataYY03!C78,Lookup!$C$1:$C$126,0)) -> Elementary School | B78: Electric | C78: KIRKES | D78: Houston, TX | E78: 93897 | F78: 1901-01-01 | G78: 3716.404992 | H78: 3542.47488 | I78: -4.680063458 | J78: 84146.87 | K78: 80123.81 | L78: -4.780997796 | M78: 6082 | N78: 5400 | O78: -11.21341664
A79: =INDEX(Lookup!$A$1:$A$126,MATCH(DataYY03!C79,Lookup!$C$1:$C$126,0)) -> Middle School | B79: Electric | C79: LABAYMS | D79: Houston, TX | E79: 190510 | F79: 2020-05-01 | G79: 6602.486136 | H79: 5312.153036 | I79: -19.54313986 | J79: 135704.61 | K79: 114643.31 | L79: -15.51995912 | M79: 7080 | N79: 7367 | O79: 4.053672316
A80: =INDEX(Lookup!$A$1:$A$126,MATCH(DataYY03!C80,Lookup!$C$1:$C$126,0)) -> Elementary School | B80: Electric | C80: LAMKINES | D80: Cypress, TX | E80: 113622 | F80: 2020-05-05 | G80: 3060.97344 | H80: 2793.19968 | I80: -8.747993579 | J80: 69140.87 | K80: 63898.42 | L80: -7.582273697 | M80: 4585 | N80: 4240 | O80: -7.524536532
A81: =INDEX(Lookup!$A$1:$A$126,MATCH(DataYY03!C81,Lookup!$C$1:$C$126,0)) -> High School | B81: Electric | C81: LANGHAMCREEKHS | D81: Houston, TX | E81: 535686 | F81: 1901-01-01 | G81: 14829.03992 | H81: 11719.98116 | I81: -20.96601515 | J81: 296292.12 | K81: 238023.91 | L81: -19.66579806 | M81: 16526 | N81: 15035 | O81: -9.02214692
A82: =INDEX(Lookup!$A$1:$A$126,MATCH(DataYY03!C82,Lookup!$C$1:$C$126,0)) -> Administration | B82: Electric | C82: LANGHAMCREEKRETENTIONPOND | D82: Houston, TX | E82: 0 | F82: 1901-01-01 | G82: 14.412288 | H82: 11.791872 | I82: -18.18181818 | J82: 2726.6 | K82: 3779.21 | L82: 38.60522262 | M82: 250 | N82: 483 | O82: 93.2
A83: =INDEX(Lookup!$A$1:$A$126,MATCH(DataYY03!C83,Lookup!$C$1:$C$126,0)) -> Elementary School | B83: Electric | C83: LEEES | D83: Houston, TX | E83: 95352 | F83: 1901-01-01 | G83: 4105.536768 | H83: 3371.165184 | I83: -17.88734642 | J83: 83973.89 | K83: 75279.41 | L83: -10.35378973 | M83: 5104 | N83: 5002 | O83: -1.998432602
A84: =INDEX(Lookup!$A$1:$A$126,MATCH(DataYY03!C84,Lookup!$C$1:$C$126,0)) -> Elementary School | B84: Electric | C84: LIEDERES | D84: Houston, TX | E84: 88406 | F84: 1901-01-01 | G84: 2895.887232 | H84: 2651.205888 | I84: -8.449270445 | J84: 67008.85 | K84: 64786.56 | L84: -3.316412683 | M84: 4772 | N84: 4587 | O84: -3.876781224
A85: =INDEX(Lookup!$A$1:$A$126,MATCH(DataYY03!C85,Lookup!$C$1:$C$126,0)) -> Elementary School | B85: Electric | C85: LOWERYES | D85: Houston, TX | E85: 78614 | F85: 2020-05-05 | G85: 3037.717248 | H85: 3079.643904 | I85: 1.380202717 | J85: 74402.53 | K85: 71942.82 | L85: -3.305949408 | M85: 5692 | N85: 4871 | O85: -14.42375264
A86: =INDEX(Lookup!$A$1:$A$126,MATCH(DataYY03!C86,Lookup!$C$1:$C$126,0)) -> Administration | B86: Electric | C86: MAINTENANCEOPER | D86: Houston, TX | E86: 36679 | F86: 2020-05-01 | G86: 3371.820288 | H86: 2801.224704 | I86: -16.92247911 | J86: 65379.52 | K86: 54713.9 | L86: -16.313396 | M86: 3727 | N86: 3096 | O86: -16.93050711
A87: =INDEX(Lookup!$A$1:$A$126,MATCH(DataYY03!C87,Lookup!$C$1:$C$126,0)) -> Elementary School | B87: Electric | C87: MATZKEMILLSES | D87: Houston, TX | E87: 124682 | F87: 1901-01-01 | G87: 3232.283136 | H87: 3133.362432 | I87: -3.060397244 | J87: 69790.75 | K87: 67645 | L87: -3.074547845 | M87: 4347 | N87: 4179 | O87: -3.8647343
A88: =INDEX(Lookup!$A$1:$A$126,MATCH(DataYY03!C88,Lookup!$C$1:$C$126,0)) -> Elementary School | B88: Electric | C88: MCFEEES | D88: Katy, TX | E88: 105539 | F88: 1901-01-01 | G88: 3507.14362 | H88: 3191.799756 | I88: -8.991472781 | J88: 84372.82 | K88: 72596.41 | L88: -13.95758729 | M88: 4609 | N88: 4106 | O88: -10.91343025
A89: =INDEX(Lookup!$A$1:$A$126,MATCH(DataYY03!C89,Lookup!$C$1:$C$126,0)) -> Elementary School | B89: Electric | C89: METCALFES | D89: Houston, TX | E89: 85120 | F89: 2020-05-05 | G89: 2424.212352 | H89: 2310.224256 | I89: -4.702067288 | J89: 58856.69 | K89: 58764.67 | L89: -0.1563458631 | M89: 4497 | N89: 4383 | O89: -2.535023349
A90: =INDEX(Lookup!$A$1:$A$126,MATCH(DataYY03!C90,Lookup!$C$1:$C$126,0)) -> Elementary School | B90: Electric | C90: MILLSAPES | D90: Cypress, TX | E90: 77324 | F90: 1901-01-01 | G90: 2657.756928 | H90: 2442.882816 | I90: -8.084791718 | J90: 63850.81 | K90: 59060.78 | L90: -7.501909529 | M90: 4685 | N90: 4147 | O90: -11.48345784
A91: =INDEX(Lookup!$A$1:$A$126,MATCH(DataYY03!C91,Lookup!$C$1:$C$126,0)) -> Administration | B91: Electric | C91: MILLSAPNATURETRAIL | D91: Cypress, TX | E91: 1121 | F91: 1901-01-01 | G91: 7.288032 | H91: 12.798412 | I91: 75.60861423 | J91: 216.41 | K91: 303.14 | L91: 40.07670625 | M91: 22 | N91: 23 | O91: 4.545454545
A92: =INDEX(Lookup!$A$1:$A$126,MATCH(DataYY03!C92,Lookup!$C$1:$C$126,0)) -> Administration | B92: Electric | C92: MILLSAPROPES | D92: Cypress, TX | E92: 924 | F92: 1901-01-01 | G92: 15.674728 | H92: 16.36054 | I92: 4.375272094 | J92: 407.29 | K92: 371.59 | L92: -8.765253259 | M92: 21 | N92: 18 | O92: -14.28571429
A93: =INDEX(Lookup!$A$1:$A$126,MATCH(DataYY03!C93,Lookup!$C$1:$C$126,0)) -> Elementary School | B93: Electric | C93: MOOREES | D93: Houston, TX | E93: 83063 | F93: 2020-05-01 | G93: 2197.218816 | H93: 2036.718336 | I93: -7.304710793 | J93: 51165.86 | K93: 47735.25 | L93: -6.70488095 | M93: 3420 | N93: 3205 | O93: -6.286549708
A94: =INDEX(Lookup!$A$1:$A$126,MATCH(DataYY03!C94,Lookup!$C$1:$C$126,0)) -> Elementary School | B94: Electric | C94: OWENSES | D94: Houston, TX | E94: 85590 | F94: 2020-05-01 | G94: 2974.17216 | H94: 3089.470464 | I94: 3.876651982 | J94: 72177.93 | K94: 75023.11 | L94: 3.941897475 | M94: 5590 | N94: 5416 | O94: -3.112701252
A95: =INDEX(Lookup!$A$1:$A$126,MATCH(DataYY03!C95,Lookup!$C$1:$C$126,0)) -> Elementary School | B95: Electric | C95: POPEES | D95: Cypress, TX | E95: 112970 | F95: 1901-01-01 | G95: 3029.200896 | H95: 2830.04928 | I95: -6.574394464 | J95: 63940.15 | K95: 61849.68 | L95: -3.269416791 | M95: 4154 | N95: 4019 | O95: -3.249879634
A96: =INDEX(Lookup!$A$1:$A$126,MATCH(DataYY03!C96,Lookup!$C$1:$C$126,0)) -> Elementary School | B96: Electric | C96: POSTES | D96: Houston, TX | E96: 104852 | F96: 1901-01-01 | G96: 3227.697408 | H96: 3865.768704 | I96: 19.76862188 | J96: 75541.31 | K96: 85411.64 | L96: 13.0661356 | M96: 5356 | N96: 5419 | O96: 1.176250934
A97: =INDEX(Lookup!$A$1:$A$126,MATCH(DataYY03!C97,Lookup!$C$1:$C$126,0)) -> Elementary School | B97: Electric | C97: POSTMAES | D97: Cypress, TX | E97: 98920 | F97: 1901-01-01 | G97: 3181.840128 | H97: 3018.719232 | I97: -5.126621371 | J97: 71784.53 | K97: 68757.93 | L97: -4.216228761 | M97: 4887 | N97: 4607 | O97: -5.729486392
A98: =INDEX(Lookup!$A$1:$A$126,MATCH(DataYY03!C98,Lookup!$C$1:$C$126,0)) -> Administration | B98: Electric | C98: PRIDGEONSTADIUM | D98: Houston, TX | E98: 86181 | F98: 1901-01-01 | G98: 2278.779264 | H98: 2303.345664 | I98: 1.078050884 | J98: 50324.5 | K98: 48466.2 | L98: -3.6926348 | M98: 3246 | N98: 2853 | O98: -12.10720887
A99: =INDEX(Lookup!$A$1:$A$126,MATCH(DataYY03!C99,Lookup!$C$1:$C$126,0)) -> Administration | B99: Electric | C99: RECYCLECENTER | D99: Houston, TX | E99: 0 | F99: 1901-01-01 | G99: 53.390976 | H99: 35.730464 | I99: -33.07770961 | J99: 1829.72 | K99: 1621.2 | L99: -11.39627921 | M99: 150 | N99: 149 | O99: -0.6666666667
A100: =INDEX(Lookup!$A$1:$A$126,MATCH(DataYY03!C100,Lookup!$C$1:$C$126,0)) -> Elementary School | B100: Electric | C100: REEDES | D100: Houston, TX | E100: 90012 | F100: 1901-01-01 | G100: 2714.750976 | H100: 2898.180096 | I100: 6.756756757 | J100: 65321.12 | K100: 67861.93 | L100: 3.889722038 | M100: 4768 | N100: 4651 | O100: -2.45385906
A101: =INDEX(Lookup!$A$1:$A$126,MATCH(DataYY03!C101,Lookup!$C$1:$C$126,0)) -> Elementary School | B101: Electric | C101: RENNELLES | D101: Cypress, TX | E101: 113621 | F101: 2019-08-01 | G101: 1956.782 | H101: 1933.42686 | I101: -1.193548387 | J101: 38170.34 | K101: 37464.39 | L101: -1.849472653 | M101: 2129 | N101: 1968 | O101: -7.562235791
A102: =INDEX(Lookup!$A$1:$A$126,MATCH(DataYY03!C102,Lookup!$C$1:$C$126,0)) -> Elementary School | B102: Electric | C102: ROBINSONES | D102: Katy, TX | E102: 98532 | F102: 2020-05-05 | G102: 2919.143424 | H102: 2834.635008 | I102: -2.89497307 | J102: 69904.39 | K102: 67462.32 | L102: -3.493442973 | M102: 5171 | N102: 4646 | O102: -10.15277509
A103: =INDEX(Lookup!$A$1:$A$126,MATCH(DataYY03!C103,Lookup!$C$1:$C$126,0)) -> Elementary School | B103: Electric | C103: ROBISONES | D103: Cypress, TX | E103: 93882 | F103: 2020-05-01 | G103: 2505.7728 | H103: 2235.5424 | I103: -10.78431373 | J103: 48486.22 | K103: 43964.59 | L103: -9.325598077 | M103: 2730 | N103: 2508 | O103: -8.131868132
A104: =INDEX(Lookup!$A$1:$A$126,MATCH(DataYY03!C104,Lookup!$C$1:$C$126,0)) -> Middle School | B104: Electric | C104: SALYARDSMS | D104: Cypress, TX | E104: 242116 | F104: 2020-05-01 | G104: 7132.12066 | H104: 6283.788276 | I104: -11.89453214 | J104: 149181.05 | K104: 134140.17 | L104: -10.08229933 | M104: 9901 | N104: 8653 | O104: -12.6047874
A105: =INDEX(Lookup!$A$1:$A$126,MATCH(DataYY03!C105,Lookup!$C$1:$C$126,0)) -> Elementary School | B105: Electric | C105: SAMPSONES | D105: Cypress, TX | E105: 96096 | F105: 1901-01-01 | G105: 3374.850144 | H105: 3080.62656 | I105: -8.718122922 | J105: 78435.48 | K105: 74547.47 | L105: -4.956953154 | M105: 5772 | N105: 5204 | O105: -9.840609841
A106: =INDEX(Lookup!$A$1:$A$126,MATCH(DataYY03!C106,Lookup!$C$1:$C$126,0)) -> Administration | B106: Electric | C106: SATELLITECOLDFOODWAREHOUSE | D106: Cypress, TX | E106: 22020 | F106: 1901-01-01 | G106: 5274.91788 | H106: 5314.203648 | I106: 0.7447654901 | J106: 89165.45 | K106: 87117.76 | L106: -2.296506102 | M106: 3626 | N106: 3566 | O106: -1.65471594
A107: =INDEX(Lookup!$A$1:$A$126,MATCH(DataYY03!C107,Lookup!$C$1:$C$126,0)) -> Elementary School | B107: Electric | C107: SHERIDANES | D107: Katy, TX | E107: 92874 | F107: 2020-08-01 | G107: 3551.973888 | H107: 3259.797504 | I107: -8.225746957 | J107: 79963.9 | K107: 77619.1 | L107: -2.932323211 | M107: 5664 | N107: 5502 | O107: -2.860169492
A108: =INDEX(Lookup!$A$1:$A$126,MATCH(DataYY03!C108,Lookup!$C$1:$C$126,0)) -> Middle School | B108: Electric | C108: SMITHMS | D108: Cypress, TX | E108: 233159 | F108: 2020-08-01 | G108: 4991.89248 | H108: 4169.73696 | I108: -16.46981627 | J108: 97629.57 | K108: 83116.46 | L108: -14.86548594 | M108: 5424 | N108: 4627 | O108: -14.6939528
A109: =INDEX(Lookup!$A$1:$A$126,MATCH(DataYY03!C109,Lookup!$C$1:$C$126,0)) -> Middle School | B109: Electric | C109: SPILLANEMS | D109: Cypress, TX | E109: 235889 | F109: 1901-01-01 | G109: 6808.533404 | H109: 6212.92786 | I109: -8.747927177 | J109: 128770.89 | K109: 114024.16 | L109: -11.45191277 | M109: 6054 | N109: 5502 | O109: -9.117938553
A110: =INDEX(Lookup!$A$1:$A$126,MATCH(DataYY03!C110,Lookup!$C$1:$C$126,0)) -> Elementary School | B110: Electric | C110: SWENKEES | D110: Cypress, TX | E110: 107914 | F110: 1901-01-01 | G110: 3399.98976 | H110: 3060.97344 | I110: -9.971098266 | J110: 76214.86 | K110: 74056.81 | L110: -2.831534428 | M110: 5343 | N110: 5278 | O110: -1.216545012
A111: =INDEX(Lookup!$A$1:$A$126,MATCH(DataYY03!C111,Lookup!$C$1:$C$126,0)) -> Administration | B111: Electric | C111: TELGETRANS | D111: Cypress, TX | E111: 19649 | F111: 1901-01-01 | G111: 1142.3376 | H111: 1164.58384 | I111: 1.947431302 | J111: 21976.6 | K111: 22431.3 | L111: 2.069018866 | M111: 1186 | N111: 1221 | O111: 2.951096121
A112: =INDEX(Lookup!$A$1:$A$126,MATCH(DataYY03!C112,Lookup!$C$1:$C$126,0)) -> Middle School | B112: Electric | C112: THORNTONMS | D112: Katy, TX | E112: 202739 | F112: 2020-08-01 | G112: 6809.440996 | H112: 6072.176036 | I112: -10.82709962 | J112: 137991.7 | K112: 125688.36 | L112: -8.91600002 | M112: 8146 | N112: 8277 | O112: 1.60815124
A113: =INDEX(Lookup!$A$1:$A$126,MATCH(DataYY03!C113,Lookup!$C$1:$C$126,0)) -> Elementary School | B113: Electric | C113: TIPPSES | D113: Houston, TX | E113: 101727 | F113: 1901-01-01 | G113: 3730.564792 | H113: 3668.555104 | I113: -1.662206434 | J113: 84275.34 | K113: 78960.54 | L113: -6.306471146 | M113: 4835 | N113: 4528 | O113: -6.349534643
A114: =INDEX(Lookup!$A$1:$A$126,MATCH(DataYY03!C114,Lookup!$C$1:$C$126,0)) -> Middle School | B114: Electric | C114: TRUITTMS | D114: Houston, TX | E114: 209274 | F114: 2020-05-01 | G114: 5712.8822 | H114: 4779.935628 | I114: -16.33057604 | J114: 118766.51 | K114: 99526.89 | L114: -16.19953302 | M114: 7002 | N114: 6568 | O114: -6.198229077
A115: =INDEX(Lookup!$A$1:$A$126,MATCH(DataYY03!C115,Lookup!$C$1:$C$126,0)) -> Elementary School | B115: Electric | C115: WALKERES | D115: Katy, TX | E115: 98321 | F115: 1901-01-01 | G115: 3988.819072 | H115: 3206.505476 | I115: -19.61266184 | J115: 85520.81 | K115: 80235.74 | L115: -6.179864293 | M115: 4526 | N115: 4482 | O115: -0.9721608484
A116: =INDEX(Lookup!$A$1:$A$126,MATCH(DataYY03!C116,Lookup!$C$1:$C$126,0)) -> Elementary School | B116: Electric | C116: WARNERES | D116: Cypress, TX | E116: 98451 | F116: 2020-08-01 | G116: 2247.985964 | H116: 2424.43072 | I116: 7.849015022 | J116: 45703.23 | K116: 45416.18 | L116: -0.6280737707 | M116: 2671 | N116: 2548 | O116: -4.605016848
A117: =INDEX(Lookup!$A$1:$A$126,MATCH(DataYY03!C117,Lookup!$C$1:$C$126,0)) -> Middle School | B117: Electric | C117: WATKINSMS | D117: Houston, TX | E117: 220237 | F117: 2020-08-01 | G117: 6411.953232 | H117: 6466.442872 | I117: 0.8498134348 | J117: 133568.54 | K117: 131063.79 | L117: -1.875254457 | M117: 8020 | N117: 7323 | O117: -8.690773067
A118: =INDEX(Lookup!$A$1:$A$126,MATCH(DataYY03!C118,Lookup!$C$1:$C$126,0)) -> Elementary School | B118: Electric | C118: WELLSES | D118: Cypress, TX | E118: 122878 | F118: 1901-01-01 | G118: 3442.57152 | H118: 3442.57152 | I118: -1.69081922e-14 | J118: 78349.03 | K118: 79044.39 | L118: 0.887515774 | M118: 5262 | N118: 5222 | O118: -0.7601672368
A119: =INDEX(Lookup!$A$1:$A$126,MATCH(DataYY03!C119,Lookup!$C$1:$C$126,0)) -> Administration | B119: Electric | C119: WESTGREENAGSCIENCECENTER | D119: Cypress, TX | E119: 20124 | F119: 1901-01-01 | G119: 349.825536 | H119: 324.27648 | I119: -7.303370787 | J119: 7033.83 | K119: 5816.55 | L119: -17.30607649 | M119: 390 | N119: 264 | O119: -32.30769231
A120: =INDEX(Lookup!$A$1:$A$126,MATCH(DataYY03!C120,Lookup!$C$1:$C$126,0)) -> Administration | B120: Electric | C120: WESTGREENTRANS | D120: Cypress, TX | E120: 45340 | F120: 1901-01-01 | G120: 1842.152448 | H120: 1748.472576 | I120: -5.085348506 | J120: 34122.65 | K120: 32276.76 | L120: -5.409573993 | M120: 1744 | N120: 1594 | O120: -8.600917431
A121: =INDEX(Lookup!$A$1:$A$126,MATCH(DataYY03!C121,Lookup!$C$1:$C$126,0)) -> Elementary School | B121: Electric | C121: WILLBERNES | D121: Houston, TX | E121: 89993 | F121: 1901-01-01 | G121: 2733.748992 | H121: 2565.714816 | I121: -6.146657081 | J121: 60113.63 | K121: 59349.81 | L121: -1.270626978 | M121: 3934 | N121: 3949 | O121: 0.3812913066
A122: =INDEX(Lookup!$A$1:$A$126,MATCH(DataYY03!C122,Lookup!$C$1:$C$126,0)) -> Elementary School | B122: Electric | C122: WILSONES | D122: Houston, TX | E122: 84992 | F122: 1901-01-01 | G122: 2950.588416 | H122: 2862.80448 | I122: -2.975133215 | J122: 69315.83 | K122: 65454.75 | L122: -5.57027161 | M122: 5259 | N122: 4464 | O122: -15.11694238
A123: =INDEX(Lookup!$A$1:$A$126,MATCH(DataYY03!C123,Lookup!$C$1:$C$126,0)) -> Special School | B123: Electric | C123: WINDFERNANNEX | D123: Houston, TX | E123: 59400 | F123: 2020-05-01 | G123: 2469.74208 | H123: 2339.758528 | I123: -5.263041556 | J123: 50413.11 | K123: 47674.97 | L123: -5.431404649 | M123: 3071 | N123: 2975 | O123: -3.126017584
A124: =INDEX(Lookup!$A$1:$A$126,MATCH(DataYY03!C124,Lookup!$C$1:$C$126,0)) -> Special School | B124: Electric | C124: WINDFERNHS | D124: Houston, TX | E124: 50022 | F124: 1901-01-01 | G124: 1943.004344 | H124: 2210.320896 | I124: 13.75789781 | J124: 47721.41 | K124: 50345.18 | L124: 5.498098233 | M124: 3756 | N124: 3360 | O124: -10.54313099
A125: =INDEX(Lookup!$A$1:$A$126,MATCH(DataYY03!C125,Lookup!$C$1:$C$126,0)) -> Elementary School | B125: Electric | C125: WOODARDES | D125: Cypress, TX | E125: 116974 | F125: 2020-08-01 | G125: 3323.83392 | H125: 3215.74176 | I125: -3.25203252 | J125: 78771.31 | K125: 75687.65 | L125: -3.9146994 | M125: 5688 | N125: 5135 | O125: -9.722222222
A126: =INDEX(Lookup!$A$1:$A$126,MATCH(DataYY03!C126,Lookup!$C$1:$C$126,0)) -> Elementary School | B126: Electric | C126: YEAGERES | D126: Houston, TX | E126: 81794 | F126: 1901-01-01 | G126: 3193.632 | H126: 2721.95712 | I126: -14.76923077 | J126: 75335.26 | K126: 63459.71 | L126: -15.76360127 | M126: 5496 | N126: 4371 | O126: -20.46943231
A127: =INDEX(Lookup!$A$1:$A$126,MATCH(DataYY03!C127,Lookup!$C$1:$C$126,0)) -> Elementary School | B127: Water | C127: ADAM-ES | D127: Houston, TX | E127: 103177 | F127: 1901-01-01 | G127: 0 | H127: 0 | I127: 0 | J127: 12293.76 | K127: 12156.03 | L127: -1.120324457 | M127: 0 | N127: 0 | O127: 0
A128: =INDEX(Lookup!$A$1:$A$126,MATCH(DataYY03!C128,Lookup!$C$1:$C$126,0)) -> Special School | B128: Water | C128: ALCWEST | D128: Katy, TX | E128: 50839 | F128: 1901-01-01 | G128: 0 | H128: 0 | I128: 0 | J128: 4941.8 | K128: 3759.35 | L128: -23.92751629 | M128: 0 | N128: 0 | O128: 0
A129: =INDEX(Lookup!$A$1:$A$126,MATCH(DataYY03!C129,Lookup!$C$1:$C$126,0)) -> Elementary School | B129: Water | C129: ANDREES | D129: Cypress, TX | E129: 106300 | F129: 2020-05-01 | G129: 0 | H129: 0 | I129: 0 | J129: 33521.58 | K129: 31871.45 | L129: -4.922590164 | M129: 0 | N129: 0 | O129: 0
A130: =INDEX(Lookup!$A$1:$A$126,MATCH(DataYY03!C130,Lookup!$C$1:$C$126,0)) -> Middle School | B130: Water | C130: ANTHONYMS | D130: Cypress, TX | E130: 244123 | F130: 1901-01-01 | G130: 0 | H130: 0 | I130: 0 | J130: 54586.73 | K130: 38873.64 | L130: -28.78554916 | M130: 0 | N130: 0 | O130: 0
A131: =INDEX(Lookup!$A$1:$A$126,MATCH(DataYY03!C131,Lookup!$C$1:$C$126,0)) -> Middle School | B131: Water | C131: ARAGONMS | D131: Houston, TX | E131: 219821 | F131: 1901-01-01 | G131: 0 | H131: 0 | I131: 0 | J131: 28444.25 | K131: 25701.83 | L131: -9.64138622 | M131: 0 | N131: 0 | O131: 0
A132: =INDEX(Lookup!$A$1:$A$126,MATCH(DataYY03!C132,Lookup!$C$1:$C$126,0)) -> Elementary School | B132: Water | C132: AULTES | D132: Cypress, TX | E132: 91912 | F132: 2020-05-01 | G132: 0 | H132: 0 | I132: 0 | J132: 14095.35 | K132: 15002.6 | L132: 6.436519845 | M132: 0 | N132: 0 | O132: 0
A133: =INDEX(Lookup!$A$1:$A$126,MATCH(DataYY03!C133,Lookup!$C$1:$C$126,0)) -> Elementary School | B133: Water | C133: BANEES | D133: Houston, TX | E133: 106804 | F133: 1901-01-01 | G133: 0 | H133: 0 | I133: 0 | J133: 16659.47 | K133: 12635.4 | L133: -24.15485006 | M133: 0 | N133: 0 | O133: 0
A134: =INDEX(Lookup!$A$1:$A$126,MATCH(DataYY03!C134,Lookup!$C$1:$C$126,0)) -> Elementary School | B134: Water | C134: BANGES | D134: Houston, TX | E134: 89313 | F134: 2020-08-01 | G134: 0 | H134: 0 | I134: 0 | J134: 19080.8 | K134: 13085.17 | L134: -31.42231982 | M134: 0 | N134: 0 | O134: 0
A135: =INDEX(Lookup!$A$1:$A$126,MATCH(DataYY03!C135,Lookup!$C$1:$C$126,0)) -> Administration | B135: Water | C135: BARKERTRANS | D135: Houston, TX | E135: 22677 | F135: 1901-01-01 | G135: 0 | H135: 0 | I135: 0 | J135: 7832.16 | K135: 3815.7 | L135: -51.28163878 | M135: 0 | N135: 0 | O135: 0
A136: =INDEX(Lookup!$A$1:$A$126,MATCH(DataYY03!C136,Lookup!$C$1:$C$126,0)) -> Administration | B136: Water | C136: BERRYCENTER | D136: Cypress, TX | E136: 491434 | F136: 1901-01-01 | G136: 0 | H136: 0 | I136: 0 | J136: 72348.17 | K136: 50036.97 | L136: -30.83865148 | M136: 0 | N136: 0 | O136: 0
A137: =INDEX(Lookup!$A$1:$A$126,MATCH(DataYY03!C137,Lookup!$C$1:$C$126,0)) -> Elementary School | B137: Water | C137: BIRKESES | D137: Houston, TX | E137: 104952 | F137: 2020-08-01 | G137: 0 | H137: 0 | I137: 0 | J137: 17257.55 | K137: 16496.69 | L137: -4.408852937 | M137: 0 | N137: 0 | O137: 0
A138: =INDEX(Lookup!$A$1:$A$126,MATCH(DataYY03!C138,Lookup!$C$1:$C$126,0)) -> Elementary School | B138: Water | C138: BLACKES | D138: Cypress, TX | E138: 99456 | F138: 2020-08-01 | G138: 0 | H138: 0 | I138: 0 | J138: 31185.28 | K138: 29171.96 | L138: -6.455994623 | M138: 0 | N138: 0 | O138: 0
A139: =INDEX(Lookup!$A$1:$A$126,MATCH(DataYY03!C139,Lookup!$C$1:$C$126,0)) -> Middle School | B139: Water | C139: BLEYLMS | D139: Houston, TX | E139: 229363 | F139: 1901-01-01 | G139: 0 | H139: 0 | I139: 0 | J139: 21496.48 | K139: 21991.99 | L139: 2.305075063 | M139: 0 | N139: 0 | O139: 0
A140: =INDEX(Lookup!$A$1:$A$126,MATCH(DataYY03!C140,Lookup!$C$1:$C$126,0)) -> Administration | B140: Water | C140: BRADLEYPOLICESTATION | D140: Cypress, TX | E140: 19680 | F140: 2020-05-01 | G140: 0 | H140: 0 | I140: 0 | J140: 1444.1 | K140: 849.6 | L140: -41.16750918 | M140: 0 | N140: 0 | O140: 0
A141: =INDEX(Lookup!$A$1:$A$126,MATCH(DataYY03!C141,Lookup!$C$1:$C$126,0)) -> Special School | B141: Water | C141: BRAUTIGAMCENTER | D141: Houston, TX | E141: 85895 | F141: 2020-05-01 | G141: 0 | H141: 0 | I141: 0 | J141: 24555.13 | K141: 29989.89 | L141: 22.13289036 | M141: 0 | N141: 0 | O141: 0
A142: =INDEX(Lookup!$A$1:$A$126,MATCH(DataYY03!C142,Lookup!$C$1:$C$126,0)) -> High School | B142: Water | C142: BRIDGELANDHS | D142: Cypress, TX | E142: 573468 | F142: 1901-01-01 | G142: 0 | H142: 0 | I142: 0 | J142: 86777.75 | K142: 81317.16 | L142: -6.292615331 | M142: 0 | N142: 0 | O142: 0
A143: =INDEX(Lookup!$A$1:$A$126,MATCH(DataYY03!C143,Lookup!$C$1:$C$126,0)) -> Middle School | B143: Water | C143: COOKMS | D143: Houston, TX | E143: 205797 | F143: 2020-05-01 | G143: 0 | H143: 0 | I143: 0 | J143: 48491.56 | K143: 34157.42 | L143: -29.5600719 | M143: 0 | N143: 0 | O143: 0
A144: =INDEX(Lookup!$A$1:$A$126,MATCH(DataYY03!C144,Lookup!$C$1:$C$126,0)) -> Elementary School | B144: Water | C144: COPELANDES | D144: Houston, TX | E144: 86318 | F144: 1901-01-01 | G144: 0 | H144: 0 | I144: 0 | J144: 24347.16 | K144: 17714.34 | L144: -27.24268457 | M144: 0 | N144: 0 | O144: 0
A145: =INDEX(Lookup!$A$1:$A$126,MATCH(DataYY03!C145,Lookup!$C$1:$C$126,0)) -> High School | B145: Water | C145: CY-CREEKHS | D145: Houston, TX | E145: 527749 | F145: 2020-05-01 | G145: 0 | H145: 0 | I145: 0 | J145: 112751.73 | K145: 124312.97 | L145: 10.25371407 | M145: 0 | N145: 0 | O145: 0
A146: Administration | B146: Water | C146: CY-FAIRCOMPLEX | D146: Cypress, TX | E146: 0 | F146: 1901-01-01 | G146: 0 | H146: 0 | I146: 0 | J146: 181245.2 | K146: 140583.2 | L146: -22.43480103 | M146: 0 | N146: 0 | O146: 0
A147: =INDEX(Lookup!$A$1:$A$126,MATCH(DataYY03!C147,Lookup!$C$1:$C$126,0)) -> High School | B147: Water | C147: CY-FALLSHS | D147: Houston, TX | E147: 567967 | F147: 2020-05-01 | G147: 0 | H147: 0 | I147: 0 | J147: 79632.25 | K147: 71405.4 | L147: -10.33105306 | M147: 0 | N147: 0 | O147: 0
A148: =INDEX(Lookup!$A$1:$A$126,MATCH(DataYY03!C148,Lookup!$C$1:$C$126,0)) -> High School | B148: Water | C148: CY-LAKESHS | D148: Katy, TX | E148: 514068 | F148: 2020-05-01 | G148: 0 | H148: 0 | I148: 0 | J148: 87024.16 | K148: 81016.38 | L148: -6.903577122 | M148: 0 | N148: 0 | O148: 0
A149: =INDEX(Lookup!$A$1:$A$126,MATCH(DataYY03!C149,Lookup!$C$1:$C$126,0)) -> High School | B149: Water | C149: CY-PARKHS | D149: Cypress, TX | E149: 590057 | F149: 1901-01-01 | G149: 0 | H149: 0 | I149: 0 | J149: 71026.94 | K149: 70026.08 | L149: -1.409127297 | M149: 0 | N149: 0 | O149: 0
A150: =INDEX(Lookup!$A$1:$A$126,MATCH(DataYY03!C150,Lookup!$C$1:$C$126,0)) -> High School | B150: Water | C150: CY-RANCHHS | D150: Cypress, TX | E150: 527131 | F150: 2020-05-01 | G150: 0 | H150: 0 | I150: 0 | J150: 105142.58 | K150: 87761.39 | L150: -16.53106667 | M150: 0 | N150: 0 | O150: 0
A151: =INDEX(Lookup!$A$1:$A$126,MATCH(DataYY03!C151,Lookup!$C$1:$C$126,0)) -> High School | B151: Water | C151: CY-RIDGEHS | D151: Houston, TX | E151: 502564 | F151: 2020-08-01 | G151: 0 | H151: 0 | I151: 0 | J151: 70131.79 | K151: 52972.09 | L151: -24.46779128 | M151: 0 | N151: 0 | O151: 0
A152: =INDEX(Lookup!$A$1:$A$126,MATCH(DataYY03!C152,Lookup!$C$1:$C$126,0)) -> High School | B152: Water | C152: CY-SPRINGSHS | D152: Cypress, TX | E152: 478615 | F152: 2020-08-01 | G152: 0 | H152: 0 | I152: 0 | J152: 218019.94 | K152: 204419.58 | L152: -6.238126659 | M152: 0 | N152: 0 | O152: 0
A153: =INDEX(Lookup!$A$1:$A$126,MATCH(DataYY03!C153,Lookup!$C$1:$C$126,0)) -> High School | B153: Water | C153: CY-WOODSHS | D153: Cypress, TX | E153: 535914 | F153: 1901-01-01 | G153: 0 | H153: 0 | I153: 0 | J153: 54711.02 | K153: 36924.16 | L153: -32.51056186 | M153: 0 | N153: 0 | O153: 0
A154: =INDEX(Lookup!$A$1:$A$126,MATCH(DataYY03!C154,Lookup!$C$1:$C$126,0)) -> Elementary School | B154: Water | C154: DANISHES | D154: Houston, TX | E154: 98052 | F154: 2020-05-01 | G154: 0 | H154: 0 | I154: 0 | J154: 18637.25 | K154: 18981.43 | L154: 1.84673168 | M154: 0 | N154: 0 | O154: 0
A155: =INDEX(Lookup!$A$1:$A$126,MATCH(DataYY03!C155,Lookup!$C$1:$C$126,0)) -> Middle School | B155: Water | C155: DEANMS | D155: Houston, TX | E155: 222788 | F155: 2020-08-01 | G155: 0 | H155: 0 | I155: 0 | J155: 37049.67 | K155: 53712.31 | L155: 44.97378789 | M155: 0 | N155: 0 | O155: 0
A156: =INDEX(Lookup!$A$1:$A$126,MATCH(DataYY03!C156,Lookup!$C$1:$C$126,0)) -> Elementary School | B156: Water | C156: DURYEAES | D156: Katy, TX | E156: 96423 | F156: 2020-05-01 | G156: 0 | H156: 0 | I156: 0 | J156: 22781.08 | K156: 18248.62 | L156: -19.89572048 | M156: 0 | N156: 0 | O156: 0
A157: =INDEX(Lookup!$A$1:$A$126,MATCH(DataYY03!C157,Lookup!$C$1:$C$126,0)) -> Administration | B157: Water | C157: ELC1 | D157: Houston, TX | E157: 6832 | F157: 1901-01-01 | G157: 0 | H157: 0 | I157: 0 | J157: 1888.81 | K157: 1456.96 | L157: -22.86360195 | M157: 0 | N157: 0 | O157: 0
A158: =INDEX(Lookup!$A$1:$A$126,MATCH(DataYY03!C158,Lookup!$C$1:$C$126,0)) -> Administration | B158: Water | C158: ELC2 | D158: Houston, TX | E158: 4573 | F158: 1901-01-01 | G158: 0 | H158: 0 | I158: 0 | J158: 2472.25 | K158: 1665.97 | L158: -32.61320659 | M158: 0 | N158: 0 | O158: 0
A159: =INDEX(Lookup!$A$1:$A$126,MATCH(DataYY03!C159,Lookup!$C$1:$C$126,0)) -> Administration | B159: Water | C159: ELDRIDGETRANS | D159: Houston, TX | E159: 26451 | F159: 1901-01-01 | G159: 0 | H159: 0 | I159: 0 | J159: 9933.2 | K159: 8933.3 | L159: -10.0662425 | M159: 0 | N159: 0 | O159: 0
A160: =INDEX(Lookup!$A$1:$A$126,MATCH(DataYY03!C160,Lookup!$C$1:$C$126,0)) -> Elementary School | B160: Water | C160: EMERYES | D160: Katy, TX | E160: 98438 | F160: 2020-08-01 | G160: 0 | H160: 0 | I160: 0 | J160: 47098.9 | K160: 14676.48 | L160: -68.83901747 | M160: 0 | N160: 0 | O160: 0
A161: =INDEX(Lookup!$A$1:$A$126,MATCH(DataYY03!C161,Lookup!$C$1:$C$126,0)) -> Elementary School | B161: Water | C161: EMMOTTES | D161: Houston, TX | E161: 77394 | F161: 2020-05-01 | G161: 0 | H161: 0 | I161: 0 | J161: 18302.25 | K161: 13522.85 | L161: -26.11372919 | M161: 0 | N161: 0 | O161: 0
A162: =INDEX(Lookup!$A$1:$A$126,MATCH(DataYY03!C162,Lookup!$C$1:$C$126,0)) -> Administration | B162: Water | C162: FALCONCOMPLEX | D162: Houston, TX | E162: 0 | F162: 1901-01-01 | G162: 0 | H162: 0 | I162: 0 | J162: 199401.77 | K162: 88930.83 | L162: -55.40118325 | M162: 0 | N162: 0 | O162: 0
A163: =INDEX(Lookup!$A$1:$A$126,MATCH(DataYY03!C163,Lookup!$C$1:$C$126,0)) -> Elementary School | B163: Water | C163: FARNEYES | D163: Cypress, TX | E163: 95036 | F163: 1901-01-01 | G163: 0 | H163: 0 | I163: 0 | J163: 20037.52 | K163: 16463.44 | L163: -17.8369379 | M163: 0 | N163: 0 | O163: 0
A164: =INDEX(Lookup!$A$1:$A$126,MATCH(DataYY03!C164,Lookup!$C$1:$C$126,0)) -> Elementary School | B164: Water | C164: FIESTES | D164: Houston, TX | E164: 91621 | F164: 1901-01-01 | G164: 0 | H164: 0 | I164: 0 | J164: 24230.7 | K164: 21105.94 | L164: -12.89587177 | M164: 0 | N164: 0 | O164: 0
A165: =INDEX(Lookup!$A$1:$A$126,MATCH(DataYY03!C165,Lookup!$C$1:$C$126,0)) -> Elementary School | B165: Water | C165: FRANCONEES | D165: Houston, TX | E165: 90518 | F165: 1901-01-01 | G165: 0 | H165: 0 | I165: 0 | J165: 9625.79 | K165: 6190.87 | L165: -35.68455161 | M165: 0 | N165: 0 | O165: 0
A166: =INDEX(Lookup!$A$1:$A$126,MATCH(DataYY03!C166,Lookup!$C$1:$C$126,0)) -> Elementary School | B166: Water | C166: FRAZIERES | D166: Houston, TX | E166: 85844 | F166: 1901-01-01 | G166: 0 | H166: 0 | I166: 0 | J166: 3804.65 | K166: 3084.95 | L166: -18.91632607 | M166: 0 | N166: 0 | O166: 0
A167: =INDEX(Lookup!$A$1:$A$126,MATCH(DataYY03!C167,Lookup!$C$1:$C$126,0)) -> Elementary School | B167: Water | C167: GLEASONES | D167: Houston, TX | E167: 91424 | F167: 1901-01-01 | G167: 0 | H167: 0 | I167: 0 | J167: 13570 | K167: 15919.51 | L167: 17.31400147 | M167: 0 | N167: 0 | O167: 0
A168: =INDEX(Lookup!$A$1:$A$126,MATCH(DataYY03!C168,Lookup!$C$1:$C$126,0)) -> Middle School | B168: Water | C168: GOODSONMS | D168: Cypress, TX | E168: 218801 | F168: 1901-01-01 | G168: 0 | H168: 0 | I168: 0 | J168: 45357.36 | K168: 30231.48 | L168: -33.3482372 | M168: 0 | N168: 0 | O168: 0
A169: =INDEX(Lookup!$A$1:$A$126,MATCH(DataYY03!C169,Lookup!$C$1:$C$126,0)) -> Elementary School | B169: Water | C169: HAIRGROVEES | D169: Houston, TX | E169: 85052 | F169: 1901-01-01 | G169: 0 | H169: 0 | I169: 0 | J169: 20290.04 | K169: 16249.13 | L169: -19.91573205 | M169: 0 | N169: 0 | O169: 0
A170: =INDEX(Lookup!$A$1:$A$126,MATCH(DataYY03!C170,Lookup!$C$1:$C$126,0)) -> Elementary School | B170: Water | C170: HAMILTONES | D170: Cypress, TX | E170: 89692 | F170: 2020-08-01 | G170: 0 | H170: 0 | I170: 0 | J170: 26388.06 | K170: 15057.02 | L170: -42.94002666 | M170: 0 | N170: 0 | O170: 0
A171: =INDEX(Lookup!$A$1:$A$126,MATCH(DataYY03!C171,Lookup!$C$1:$C$126,0)) -> Middle School | B171: Water | C171: HAMILTONMS | D171: Cypress, TX | E171: 194726 | F171: 2020-08-01 | G171: 0 | H171: 0 | I171: 0 | J171: 43853.07 | K171: 42773.08 | L171: -2.462746622 | M171: 0 | N171: 0 | O171: 0
A172: =INDEX(Lookup!$A$1:$A$126,MATCH(DataYY03!C172,Lookup!$C$1:$C$126,0)) -> Elementary School | B172: Water | C172: HANCOCKES | D172: Houston, TX | E172: 88795 | F172: 1901-01-01 | G172: 0 | H172: 0 | I172: 0 | J172: 15772.21 | K172: 15014.47 | L172: -4.804272832 | M172: 0 | N172: 0 | O172: 0
A173: =INDEX(Lookup!$A$1:$A$126,MATCH(DataYY03!C173,Lookup!$C$1:$C$126,0)) -> Elementary School | B173: Water | C173: HEMMENWAYES | D173: Katy, TX | E173: 101091 | F173: 2020-08-01 | G173: 0 | H173: 0 | I173: 0 | J173: 16901.79 | K173: 8951.72 | L173: -47.03685231 | M173: 0 | N173: 0 | O173: 0
A174: =INDEX(Lookup!$A$1:$A$126,MATCH(DataYY03!C174,Lookup!$C$1:$C$126,0)) -> Elementary School | B174: Water | C174: HOLBROOKES | D174: Houston, TX | E174: 99937 | F174: 1901-01-01 | G174: 0 | H174: 0 | I174: 0 | J174: 24898.8 | K174: 14767.47 | L174: -40.69003325 | M174: 0 | N174: 0 | O174: 0
A175: =INDEX(Lookup!$A$1:$A$126,MATCH(DataYY03!C175,Lookup!$C$1:$C$126,0)) -> Elementary School | B175: Water | C175: HOLMSLEYES | D175: Houston, TX | E175: 81704 | F175: 2020-08-01 | G175: 0 | H175: 0 | I175: 0 | J175: 21351.14 | K175: 9276.71 | L175: -56.55168764 | M175: 0 | N175: 0 | O175: 0
A176: =INDEX(Lookup!$A$1:$A$126,MATCH(DataYY03!C176,Lookup!$C$1:$C$126,0)) -> Elementary School | B176: Water | C176: HOOVERES | D176: Katy, TX | E176: 112519 | F176: 1901-01-01 | G176: 0 | H176: 0 | I176: 0 | J176: 12176.35 | K176: 11483.2 | L176: -5.692592608 | M176: 0 | N176: 0 | O176: 0
A177: =INDEX(Lookup!$A$1:$A$126,MATCH(DataYY03!C177,Lookup!$C$1:$C$126,0)) -> Middle School | B177: Water | C177: HOPPERMS | D177: Cypress, TX | E177: 226178 | F177: 1901-01-01 | G177: 0 | H177: 0 | I177: 0 | J177: 57014.08 | K177: 45494 | L177: -20.20567551 | M177: 0 | N177: 0 | O177: 0
A178: =INDEX(Lookup!$A$1:$A$126,MATCH(DataYY03!C178,Lookup!$C$1:$C$126,0)) -> Elementary School | B178: Water | C178: HORNEES | D178: Houston, TX | E178: 87881 | F178: 1901-01-01 | G178: 0 | H178: 0 | I178: 0 | J178: 14805.06 | K178: 10757.76 | L178: -27.33727523 | M178: 0 | N178: 0 | O178: 0
A179: =INDEX(Lookup!$A$1:$A$126,MATCH(DataYY03!C179,Lookup!$C$1:$C$126,0)) -> Administration | B179: Water | C179: ISCA | D179: Houston, TX | E179: 132467 | F179: 1901-01-01 | G179: 0 | H179: 0 | I179: 0 | J179: 15246.42 | K179: 11852.77 | L179: -22.25866794 | M179: 0 | N179: 0 | O179: 0
A180: =INDEX(Lookup!$A$1:$A$126,MATCH(DataYY03!C180,Lookup!$C$1:$C$126,0)) -> Administration | B180: Water | C180: ISCW | D180: Houston, TX | E180: 35364 | F180: 1901-01-01 | G180: 0 | H180: 0 | I180: 0 | J180: 2466.81 | K180: 2007.61 | L180: -18.61513453 | M180: 0 | N180: 0 | O180: 0
A181: =INDEX(Lookup!$A$1:$A$126,MATCH(DataYY03!C181,Lookup!$C$1:$C$126,0)) -> Administration | B181: Water | C181: JARVISCENTRALPLANT | D181: Cypress, TX | E181: 12152 | F181: 1901-01-01 | G181: 0 | H181: 0 | I181: 0 | J181: 104532.28 | K181: 126377.24 | L181: 20.89781262 | M181: 0 | N181: 0 | O181: 0
A182: =INDEX(Lookup!$A$1:$A$126,MATCH(DataYY03!C182,Lookup!$C$1:$C$126,0)) -> High School | B182: Water | C182: JERSEYVILLAGEHS | D182: Houston, TX | E182: 513473 | F182: 2020-05-01 | G182: 0 | H182: 0 | I182: 0 | J182: 64990.38 | K182: 23893.66 | L182: -63.23508187 | M182: 0 | N182: 0 | O182: 0
A183: =INDEX(Lookup!$A$1:$A$126,MATCH(DataYY03!C183,Lookup!$C$1:$C$126,0)) -> Elementary School | B183: Water | C183: JOWELLES | D183: Katy, TX | E183: 73726 | F183: 1901-01-01 | G183: 0 | H183: 0 | I183: 0 | J183: 8052.95 | K183: 6475.7 | L183: -19.58599023 | M183: 0 | N183: 0 | O183: 0
A184: =INDEX(Lookup!$A$1:$A$126,MATCH(DataYY03!C184,Lookup!$C$1:$C$126,0)) -> Middle School | B184: Water | C184: KAHLAMS | D184: Houston, TX | E184: 221601 | F184: 1901-01-01 | G184: 0 | H184: 0 | I184: 0 | J184: 37709.22 | K184: 50737.24 | L184: 34.54863293 | M184: 0 | N184: 0 | O184: 0
A185: =INDEX(Lookup!$A$1:$A$126,MATCH(DataYY03!C185,Lookup!$C$1:$C$126,0)) -> Elementary School | B185: Water | C185: KEITHES | D185: Cypress, TX | E185: 95518 | F185: 1901-01-01 | G185: 0 | H185: 0 | I185: 0 | J185: 14048.4 | K185: 13828 | L185: -1.568861934 | M185: 0 | N185: 0 | O185: 0
A186: =INDEX(Lookup!$A$1:$A$126,MATCH(DataYY03!C186,Lookup!$C$1:$C$126,0)) -> Elementary School | B186: Water | C186: KIRKES | D186: Houston, TX | E186: 93897 | F186: 1901-01-01 | G186: 0 | H186: 0 | I186: 0 | J186: 16334.6 | K186: 15713 | L186: -3.805419172 | M186: 0 | N186: 0 | O186: 0
A187: =INDEX(Lookup!$A$1:$A$126,MATCH(DataYY03!C187,Lookup!$C$1:$C$126,0)) -> Middle School | B187: Water | C187: LABAYMS | D187: Houston, TX | E187: 190510 | F187: 2020-05-01 | G187: 0 | H187: 0 | I187: 0 | J187: 32478.4 | K187: 46755.8 | L187: 43.95967782 | M187: 0 | N187: 0 | O187: 0
A188: =INDEX(Lookup!$A$1:$A$126,MATCH(DataYY03!C188,Lookup!$C$1:$C$126,0)) -> High School | B188: Water | C188: LANGHAMCREEKHS | D188: Houston, TX | E188: 535686 | F188: 1901-01-01 | G188: 0 | H188: 0 | I188: 0 | J188: 67166.53 | K188: 33994.88 | L188: -49.38717245 | M188: 0 | N188: 0 | O188: 0
A189: =INDEX(Lookup!$A$1:$A$126,MATCH(DataYY03!C189,Lookup!$C$1:$C$126,0)) -> Elementary School | B189: Water | C189: LEEES | D189: Houston, TX | E189: 95352 | F189: 1901-01-01 | G189: 0 | H189: 0 | I189: 0 | J189: 17065.6 | K189: 12978.26 | L189: -23.95075473 | M189: 0 | N189: 0 | O189: 0
A190: =INDEX(Lookup!$A$1:$A$126,MATCH(DataYY03!C190,Lookup!$C$1:$C$126,0)) -> Elementary School | B190: Water | C190: LIEDERES | D190: Houston, TX | E190: 88406 | F190: 1901-01-01 | G190: 0 | H190: 0 | I190: 0 | J190: 14361.07 | K190: 16001.97 | L190: 11.42602884 | M190: 0 | N190: 0 | O190: 0
A191: =INDEX(Lookup!$A$1:$A$126,MATCH(DataYY03!C191,Lookup!$C$1:$C$126,0)) -> Elementary School | B191: Water | C191: LOWERYES | D191: Houston, TX | E191: 78614 | F191: 2020-05-05 | G191: 0 | H191: 0 | I191: 0 | J191: 11260.81 | K191: 8933.7 | L191: -20.66556491 | M191: 0 | N191: 0 | O191: 0
A192: =INDEX(Lookup!$A$1:$A$126,MATCH(DataYY03!C192,Lookup!$C$1:$C$126,0)) -> Administration | B192: Water | C192: MAINTENANCEOPER | D192: Houston, TX | E192: 36679 | F192: 2020-05-01 | G192: 0 | H192: 0 | I192: 0 | J192: 5886.4 | K192: 8189.64 | L192: 39.12815983 | M192: 0 | N192: 0 | O192: 0
A193: =INDEX(Lookup!$A$1:$A$126,MATCH(DataYY03!C193,Lookup!$C$1:$C$126,0)) -> Elementary School | B193: Water | C193: MATZKEMILLSES | D193: Houston, TX | E193: 124682 | F193: 1901-01-01 | G193: 0 | H193: 0 | I193: 0 | J193: 21247.98 | K193: 22325.28 | L193: 5.070129019 | M193: 0 | N193: 0 | O193: 0
A194: =INDEX(Lookup!$A$1:$A$126,MATCH(DataYY03!C194,Lookup!$C$1:$C$126,0)) -> Elementary School | B194: Water | C194: MCFEEES | D194: Katy, TX | E194: 105539 | F194: 1901-01-01 | G194: 0 | H194: 0 | I194: 0 | J194: 20454.78 | K194: 16260.94 | L194: -20.50298268 | M194: 0 | N194: 0 | O194: 0
A195: =INDEX(Lookup!$A$1:$A$126,MATCH(DataYY03!C195,Lookup!$C$1:$C$126,0)) -> Elementary School | B195: Water | C195: METCALFES | D195: Houston, TX | E195: 85120 | F195: 2020-05-05 | G195: 0 | H195: 0 | I195: 0 | J195: 14112.07 | K195: 10696.51 | L195: -24.20311124 | M195: 0 | N195: 0 | O195: 0
A196: =INDEX(Lookup!$A$1:$A$126,MATCH(DataYY03!C196,Lookup!$C$1:$C$126,0)) -> Elementary School | B196: Water | C196: MILLSAPES | D196: Cypress, TX | E196: 77324 | F196: 1901-01-01 | G196: 0 | H196: 0 | I196: 0 | J196: 16683.24 | K196: 15015.36 | L196: -9.997338646 | M196: 0 | N196: 0 | O196: 0
A197: =INDEX(Lookup!$A$1:$A$126,MATCH(DataYY03!C197,Lookup!$C$1:$C$126,0)) -> Elementary School | B197: Water | C197: MOOREES | D197: Houston, TX | E197: 83063 | F197: 2020-05-01 | G197: 0 | H197: 0 | I197: 0 | J197: 9886.1 | K197: 8677.05 | L197: -12.22979739 | M197: 0 | N197: 0 | O197: 0
A198: =INDEX(Lookup!$A$1:$A$126,MATCH(DataYY03!C198,Lookup!$C$1:$C$126,0)) -> Elementary School | B198: Water | C198: OWENSES | D198: Houston, TX | E198: 85590 | F198: 2020-05-01 | G198: 0 | H198: 0 | I198: 0 | J198: 10452.6 | K198: 7858.33 | L198: -24.81937508 | M198: 0 | N198: 0 | O198: 0
A199: =INDEX(Lookup!$A$1:$A$126,MATCH(DataYY03!C199,Lookup!$C$1:$C$126,0)) -> Elementary School | B199: Water | C199: POPEES | D199: Cypress, TX | E199: 112970 | F199: 1901-01-01 | G199: 0 | H199: 0 | I199: 0 | J199: 16211.05 | K199: 14163.56 | L199: -12.63021211 | M199: 0 | N199: 0 | O199: 0
A200: =INDEX(Lookup!$A$1:$A$126,MATCH(DataYY03!C200,Lookup!$C$1:$C$126,0)) -> Elementary School | B200: Water | C200: POSTES | D200: Houston, TX | E200: 104852 | F200: 1901-01-01 | G200: 0 | H200: 0 | I200: 0 | J200: 23845.75 | K200: 18006.6 | L200: -24.48717277 | M200: 0 | N200: 0 | O200: 0
... 218 more rows

Sheet Avg. Costs
A1: Utility | B1: (All) | E1: Utility | F1: (All)
A3: Row Labels | B3: Sum of Cost | C3: Cost/SF | E3: Row Labels | F3: Average of Area
A4: Administration | B4: 2427868.36 | C4: =B4/F4 -> 66.19206156 | E4: Administration | F4: 36679.14706
A5: Elementary School | B5: 4840936.28 | C5: =B5/F5 -> 50.53066728 | E5: Elementary School | F5: 95801.94643
A6: High School | B6: 5670347.22 | C6: 93.81251253 | E6: Special School | F6: 60443.4
A7: Middle School | B7: 3324811.61 | C7: 15.11917897 | E7: Middle School | F7: 219906.8889
A8: Special School | B8: 309680.72 | C8: 0.5674626318 | E8: High School | F8: 545728.8333
A9: Grand Total | B9: 16573644.19 | E9: Grand Total | F9: 139370.296

Sheet Dashboard $
A4: CFISD Energy Management Dept. Utilities (CY 2020)
A6: School Type Sorted | B6: UTILITY COSTS | C6: % | D6: SQU FT | E6: COST/ ft2
A7: =INDEX($AR$10:$AR$14,MATCH(AX10,$AW$10:$AW$14,0)) -> High School | B7: =INDEX($AS$10:$AS$14,MATCH(AX10,$AW$10:$AW$14,0)) -> 5670347.22 | C7: =B7/$B$12 -> 0.3421303861 | D7: =INDEX($AV$10:$AV$14,MATCH(A7,$AU$10:$AU$14,0)) -> 6548746 | E7: =B7/D7 -> 0.8658676363 | AR7: Utility | AS7: (All) | AU7: Utility | AV7: (All)
A8: =INDEX($AR$10:$AR$14,MATCH(AX11,$AW$10:$AW$14,0)) -> Elementary School | B8: =INDEX($AS$10:$AS$14,MATCH(AX11,$AW$10:$AW$14,0)) -> 4840936.28 | C8: =B8/$B$12 -> 0.2920864162 | D8: =INDEX($AV$10:$AV$14,MATCH(A8,$AU$10:$AU$14,0)) -> 5364909 | E8: =B8/D8 -> 0.9023333443 | AM8: Matt
A9: =INDEX($AR$10:$AR$14,MATCH(AX12,$AW$10:$AW$14,0)) -> Middle School | B9: =INDEX($AS$10:$AS$14,MATCH(AX12,$AW$10:$AW$14,0)) -> 3324811.61 | C9: =B9/$B$12 -> 0.2006083641 | D9: =INDEX($AV$10:$AV$14,MATCH(A9,$AU$10:$AU$14,0)) -> 3958324 | E9: 0.8399543873 | AM9: =AV10/12 -> 103924.25 | AN9: =#REF! ->  | AO9: =AS10/12 -> 202322.3633 | AR9: Row Labels | AS9: Sum of Cost | AU9: Row Labels | AV9: Sum of Area
A10: =INDEX($AR$10:$AR$14,MATCH(AX13,$AW$10:$AW$14,0)) -> Administration | B10: =INDEX($AS$10:$AS$14,MATCH(AX13,$AW$10:$AW$14,0)) -> 2427868.36 | C10: =B10/$B$12 -> 0.1464897134 | D10: =INDEX($AV$10:$AV$14,MATCH(A10,$AU$10:$AU$14,0)) -> 1247091 | E10: 1.94682534 | AM10: =AV11/18 -> 298050.5 | AN10: =#REF! ->  | AO10: =AS11/18 -> 268940.9044 | AR10: Administration | AS10: 2427868.36 | AU10: Administration | AV10: 1247091 | AW10: =RANK(AS10,$AS$10:$AS$14,0) -> 4 | AX10: 1 | AY10: =AV10 -> 1247091
A11: =INDEX($AR$10:$AR$14,MATCH(AX14,$AW$10:$AW$14,0)) -> Special School | B11: =INDEX($AS$10:$AS$14,MATCH(AX14,$AW$10:$AW$14,0)) -> 309680.72 | C11: =B11/$B$12 -> 0.01868513165 | D11: =INDEX($AV$10:$AV$14,MATCH(A11,$AU$10:$AU$14,0)) -> 302217 | E11: 1.024696559 | AM11: =AV12/56 -> 5396.732143 | AN11: =#REF! ->  | AO11: =AS12/56 -> 5530.012857 | AR11: Elementary School | AS11: 4840936.28 | AU11: Elementary School | AV11: 5364909 | AW11: =RANK(AS11,$AS$10:$AS$14,0) -> 2 | AX11: 2 | AY11: =AV11 -> 5364909
A12: ="% Expenses ( "&ROUND(B12/AN23*100,1)&"%)" -> % Expenses ( 100%) | B12: =ROUND(SUM(B7:B11),0) -> 16573644 | D12: =IFERROR(SUM(D7:D11),"") -> 17421287 | E12: Total Squ Ft. | AM12: =AV13/4 -> 989581 | AN12: =#REF! ->  | AO12: =AS13/4 -> 831202.9025 | AR12: Special School | AS12: 309680.72 | AU12: Special School | AV12: 302217 | AW12: =RANK(AS12,$AS$10:$AS$14,0) -> 5 | AX12: 3 | AY12: =AV12 -> 302217
AR13: Middle School | AS13: 3324811.61 | AU13: Middle School | AV13: 3958324 | AW13: =RANK(AS13,$AS$10:$AS$14,0) -> 3 | AX13: 4 | AY13: =AV13 -> 3958324
AR14: High School | AS14: 5670347.22 | AU14: High School | AV14: 6548746 | AW14: =RANK(AS14,$AS$10:$AS$14,0) -> 1 | AX14: 5 | AY14: =AV14 -> 6548746
E15: Costs per Squ. ft. | H15: Consumption | AR15: Grand Total | AS15: 16573644.19 | AU15: Grand Total | AV15: 17421287 | AY15: =SUM(AY10:AY14) -> 17421287
E16: Total | F16: =B12/D12 -> 0.9513444099 | H16: Utility | I16: Annual Usage | K16: Blended Rate
E17: Schools Only | F17: =SUM(AS11,AS13,AS14)/SUM(AV11,AV13,AV14) -> 0.871730936 | H17: Electric | I17: =Benchmark!F13 -> 172614128 | J17: kWhs | K17: =AS29/I17 -> 0.0718761933 | L17: Per kWh | AM17: Utility | AN17: Costs
H18: Water | I18: =water!B26*1000 -> 445432000 | J18: Gallons | K18: =AS40/(I18/1000) -> 7.802786912 | L18: Per kGal | AM18: Electric | AN18: 12406846.43
H19: Natural Gas | I19: =Benchmark!F47*10 -> 1911309.2 | J19: Therms | K19: =AS52/I19 -> 0.3616300178 | L19: Per Therm | AM19: Fire | AN19: 23342.94
AM20: Irrigation | AN20: 748082.26 | AR20: Electric Only
AM21: Nat_Gas | AN21: 691186.78 | AR21: Utility | AS21: Electric | AU21: Utility | AV21: (All)
H22: Energy Benchmarks | AM22: Water | AN22: 2704185.78
H23: Benchmark | I23: Schools Only | J23: District | AM23: Grand Total | AN23: 16573644.19 | AR23: Row Labels | AS23: Sum of Cost | AU23: Row Labels | AV23: Sum of Area
H24: kWh/SF | I24: =Benchmark!G13 -> 9.033151095 | J24: =Benchmark!G12 -> 9.910170001 | AR24: Administration | AS24: 1774671.2 | AU24: Administration | AV24: 1247091 | AW24: 4 | AX24: 1
A25: Prepared by Jay Bonham, Energy Manager | H25: kBtus/SF | I25: =Benchmark!F26 -> 40.0007301 | J25: =Benchmark!F42 -> 44.77799629 | AR25: Elementary School | AS25: 3794404.25 | AU25: Elementary School | AV25: 5364909 | AW25: 2 | AX25: 2
AR26: Special School | AS26: 253065.12 | AU26: Special School | AV26: 302217 | AW26: 5 | AX26: 3
AR27: Middle School | AS27: 2396168.23 | AU27: Middle School | AV27: 3958324 | AW27: 3 | AX27: 4
AR28: High School | AS28: 4188537.63 | AU28: High School | AV28: 6374072 | AW28: 1 | AX28: 5
AR29: Grand Total | AS29: 12406846.43 | AU29: Grand Total | AV29: 17246613
AR31: Water
AR32: Utility | AS32: (Multiple Items) | AU32: Utility | AV32: (All)
AR34: Row Labels | AS34: Sum of Cost | AU34: Row Labels | AV34: Sum of Area
AR35: Administration | AS35: 513921.65 | AU35: Administration | AV35: 1247091 | AW35: 4 | AX35: 1
AR36: Elementary School | AS36: 897897.59 | AU36: Elementary School | AV36: 5364909 | AW36: 2 | AX36: 2
AR37: Special School | AS37: 35760.58 | AU37: Special School | AV37: 302217 | AW37: 5 | AX37: 3
AR38: Middle School | AS38: 755375.22 | AU38: Middle School | AV38: 3958324 | AW38: 3 | AX38: 4
AR39: High School | AS39: 1272655.94 | AU39: High School | AV39: 6374072 | AW39: 1 | AX39: 5
AR40: Grand Total | AS40: 3475610.98 | AU40: Grand Total | AV40: 17246613
AR42: Nat Gas
AR43: Utility | AS43: Nat_Gas | AU43: Utility | AV43: (All)
AR45: Row Labels | AS45: Sum of Cost | AU45: Row Labels | AV45: Sum of Area
AR46: Administration | AS46: 139275.51 | AU46: Administration | AV46: 1247091 | AW46: 4 | AX46: 1
AR47: Elementary School | AS47: 148634.44 | AU47: Elementary School | AV47: 5364909 | AW47: 3 | AX47: 2
AR48: Special School | AS48: 20855.02 | AU48: Special School | AV48: 302217 | AW48: 5 | AX48: 3
AR49: Middle School | AS49: 172133.29 | AU49: Middle School | AV49: 3958324 | AW49: 2 | AX49: 4
AR50: High School | AS50: 209153.65 | AU50: High School | AV50: 6374072 | AW50: 1 | AX50: 5
AR51: #N/A | AS51: 1134.87 | AU51: Grand Total | AV51: 17246613
AR52: Grand Total | AS52: 691186.78

Sheet Benchmark
D4: Utility | E4: Electric
D6: Row Labels | E6: Sum of Area | F6: Sum of Mmbtus | G6: kWh/SF
D7: Administration | E7: 1247091 | F7: 89104.30494 | G7: =ROUND((F7/E7*1000000)/3412,1) -> 20.9
D8: Elementary School | E8: 5364909 | F8: 164734.8846 | G8: =ROUND((F8/E8*1000000)/3412,1) -> 9
D9: High School | E9: 6548746 | F9: 208058.5601 | G9: 9.3
D10: Middle School | E10: 3958324 | F10: 115569.5034 | G10: 8.6
D11: Special School | E11: 302217 | F11: 11492.15168 | G11: 11.1
D12: Grand Total | E12: 17421287 | F12: 588959.4047 | G12: =SUMPRODUCT(G7:G11,E7:E11)/SUM(E7:E11) -> 9.910170001 | H12: ALL
F13: =ROUND(F12*1000/3.412,0) -> 172614128 | G13: =SUMPRODUCT(F8:F10,G8:G10)/SUM(F8:F10) -> 9.033151095 | H13: Schools Only
D16: Utility | E16: (Multiple Items)
D18: Row Labels | E18: Sum of Area | F18: Sum of Mmbtus
D19: Administration | E19: 2419705 | F19: 128532.7049
D20: Elementary School | E20: 10643974 | F20: 203409.3246
D21: High School | E21: 12415438 | F21: 267989.1101
D22: Middle School | E22: 7916648 | F22: 163492.3134
D23: Special School | E23: 642411 | F23: 16666.87168
D24: Grand Total | E24: 34038176 | F24: 780090.3247
F26: =SUM(F20:F22)*1000/SUM(E8:E10) -> 40.0007301
D30: Utility | E30: (Multiple Items)
D32: Row Labels | E32: Sum of Area | F32: Sum of Mmbtus
D33: Administration | E33: 2419705 | F33: 128532.7049
D34: Elementary School | E34: 10643974 | F34: 203409.3246
D35: High School | E35: 12415438 | F35: 267989.1101
D36: Middle School | E36: 7916648 | F36: 163492.3134
D37: Special School | E37: 642411 | F37: 16666.87168
D38: Grand Total | E38: 34038176 | F38: 780090.3247
F40: kBtus/SF
F41: ALL
F42: =F38*1000/(E12) -> 44.77799629
F44: MMBTUs
E45: ALL | F45: =F38 -> 780090.3247
E46: Electric | F46: =F12 -> 588959.4047
E47: Natural Gas | F47: =F45-F46 -> 191130.92 | G47: MMBtus Gas

Sheet water
A1: Location: | B1: Cypress Fairbanks ISD [Cypress Fairbanks ISD]
A2: Time: | B2: 2020-05-13T02:32:11 | C2: Commodity: | D2: Water | E2: Created By: | F2: Jay Bonham | K2: Location: | L2: Cypress Fairbanks ISD [Cypress Fairbanks ISD]
A3: Year | B3: Use (KGAL) | K3: Time: | L3: 2020-07-08T03:36:05 | M3: Commodity: | N3: Water | O3: Created By: | P3: Jay Bonham
A4: 2018 | B4: 332391 | K4: Month | L4: Previous 12 Months (KGAL) | M4: Current 12 Months (KGAL)
A5: 2019 | B5: 338320 | K5: Aug | L5: 32622.44 | M5: 38816.61
A6: 2020 | B6: 320025 | K6: Sep | L6: 42147.56 | M6: 49103.31
A7: 2020YTD | K7: Oct | L7: 30907.76 | M7: 38507.88
K8: Nov | L8: 23809.78 | M8: 27518.19
A9: Location: | B9: Cypress Fairbanks ISD [Cypress Fairbanks ISD] | K9: Dec | L9: 18813.15 | M9: 19647.9
A10: Time: | B10: 2020-05-13T02:32:11 | C10: Commodity: | D10: Irrigation | E10: Created By: | F10: Jay Bonham | K10: Jan | L10: 19207.25 | M10: 23700.81
A11: Year | B11: Use (KGAL) | K11: Feb | L11: 24519.43 | M11: 25096.85
A12: 2018 | B12: 145218 | K12: Mar | L12: 22674.94 | M12: 16698.48
A13: 2019 | B13: 91051 | K13: Apr | L13: 30728.49 | M13: 9518.56
A14: 2020 | B14: 125051 | K14: May | L14: 38108.46 | M14: 12679.73
A15: 2020YTD | K15: Jun | L15: 25148.06 | M15: 28
K16: Jul | L16: 27286.85
A17: Location: | B17: Cypress Fairbanks ISD [Cypress Fairbanks ISD]
A18: Time: | B18: 2020-05-13T02:32:11 | C18: Commodity: | D18: Fire Protection | E18: Created By: | F18: Jay Bonham
A19: Year | B19: Use (KGAL) | K19: Location: | L19: Cypress Fairbanks ISD [Cypress Fairbanks ISD]
A20: 2018 | B20: 491 | K20: Time: | L20: 2020-07-08T03:36:05 | M20: Commodity: | N20: Irrigation | O20: Created By: | P20: Jay Bonham
A21: 2019 | B21: 198 | K21: Month | L21: Previous 12 Months (KGAL) | M21: Current 12 Months (KGAL)
A22: 2020 | B22: 356 | K22: Aug | L22: 19986.08 | M22: 23413.2
A23: 2020YTD | K23: Sep | L23: 14643.17 | M23: 18383.9
K24: Oct | L24: 3057.84 | M24: 12369
B25: Total Water | K25: Nov | L25: 1651 | M25: 5697.1
B26: =B6+B14+B22 -> 445432 | C26: KGAL | K26: Dec | L26: 1313.7 | M26: 5321.9
K27: Jan | L27: 866 | M27: 3354.1
K28: Feb | L28: 1033.9 | M28: 1939
K29: Mar | L29: 1901.8 | M29: 3338.9
K30: Apr | L30: 6638.4 | M30: 6677.52
K31: May | L31: 8581.8 | M31: 8564.21
K32: Jun | L32: 12410.2 | M32: 136
K33: Jul | L33: 14314.8
K36: Location: | L36: Cypress Fairbanks ISD [Cypress Fairbanks ISD]
K37: Time: | L37: 2020-07-08T03:36:05 | M37: Commodity: | N37: Fire Protection | O37: Created By: | P37: Jay Bonham
K38: Month | L38: Previous 12 Months (KGAL) | M38: Current 12 Months (KGAL)
K39: Aug | L39: 59 | M39: 30.01
K40: Sep | L40: 22 | M40: 0.01
K41: Oct | L41: 1 | M41: 32.03
K42: Nov | L42: 3 | M42: 44
K43: Dec | L43: 5 | M43: 1
K44: Jan | L44: 1 | M44: 72
K45: Feb | L45: 1 | M45: 21
K46: Mar | L46: 11 | M46: 40.01
K47: Apr | L47: 52 | M47: 70
K48: May | L48: 3 | M48: 27
K49: Jun | L49: 32.08
K50: Jul | L50: 7.04

Sheet Electric Matt
D3: Average | E3: Average
C4: Avg. | D4: Annual | E4: Annual
C5: Sq Feet | D5: Cost/Sq.Ft. | E5: Cost | H5: School Type Sorted | I5: COSTS | J5: % | K5: SQU FT | L5: COST/ ft2
B6: High School | C6: =VLOOKUP(B6,'Avg. Costs'!$E$4:$F$8,2,FALSE) -> 545728.8333 | D6: =I6/K6 -> 0.690194025 | E6: =I6/G6 -> 367131.2267 | G6: 12 | H6: High School | I6: 4405574.72 | J6: 0.3360870865 | K6: 6383096 | L6: 0.690194025
B7: Middle School | C7: =VLOOKUP(B7,'Avg. Costs'!$E$4:$F$8,2,FALSE) -> 219906.8889 | D7: =I7/K7 -> 0.6711879503 | E7: =I7/G7 -> 146481.6617 | G7: 18 | H7: Middle School | I7: 2636669.91 | J7: 0.2011430437 | K7: 3928363 | L7: 0.6711879503
B8: Elementary School | C8: =VLOOKUP(B8,'Avg. Costs'!$E$4:$F$8,2,FALSE) -> 95801.94643 | D8: =I8/K8 -> 0.7353761479 | E8: 70270.70625 | G8: 56 | H8: Elementary School | I8: 3935159.55 | J8: 0.3002006304 | K8: 5351220 | L8: 0.7353761479
B9: Special School | C9: =VLOOKUP(B9,'Avg. Costs'!$E$4:$F$8,2,FALSE) -> 60443.4 | D9: 0.8903650506 | E9: 84552.62667 | G9: 3 | H9: Special School | I9: 253657.88 | J9: 0.01935074157 | K9: 284892 | L9: 0.8903650506
C10: Wt. Avg. | D10: =SUMPRODUCT(C6:C9,D6:D9)/SUM(C6:C9) -> 0.7034798884

Sheet Gas Matt
D3: Average | E3: Average
C4: Avg. | D4: Annual | E4: Annual
C5: Sq Feet | D5: Cost/Sq.Ft. | E5: Cost | H5: School Type Sorted | I5: COSTS | J5: % | K5: SQU FT | L5: COST/ ft2
B6: High School | C6: =INDEX('Avg. Costs'!$F$4:$F$8,MATCH('Gas Matt'!B6,'Avg. Costs'!$E$4:$E$8,0)) -> 545728.8333 | D6: =E6/C6 -> 0.03409384636 | E6: =I6/G6 -> 18605.995 | G6: 12 | H6: High School | I6: 223271.94 | J6: 0.303529762 | K6: 6383096 | L6: 0.03497862793
B7: Middle School | C7: =INDEX('Avg. Costs'!$F$4:$F$8,MATCH('Gas Matt'!B7,'Avg. Costs'!$E$4:$E$8,0)) -> 219906.8889 | D7: =E7/C7 -> 0.04233174697 | E7: =I7/G7 -> 9309.042778 | G7: 18 | H7: Middle School | I7: 167562.77 | J7: 0.2277952514 | K7: 3928363 | L7: 0.04265460448
B8: Elementary School | C8: =INDEX('Avg. Costs'!$F$4:$F$8,MATCH('Gas Matt'!B8,'Avg. Costs'!$E$4:$E$8,0)) -> 95801.94643 | D8: 0.02859781405 | E8: 2739.72625 | G8: 56 | H8: Elementary School | I8: 153424.67 | J8: 0.2085750389 | K8: 5351220 | L8: 0.02867097036
B9: Special School | C9: =INDEX('Avg. Costs'!$F$4:$F$8,MATCH('Gas Matt'!B9,'Avg. Costs'!$E$4:$E$8,0)) -> 60443.4 | D9: 0.1380078994 | E9: =I9/G9 -> 8341.666667 | G9: 3 | H9: Special School | I9: 25025 | J9: 0.03402054147 | K9: 284892 | L9: 0.0878403044
C10: Wt. Avg. | D10: =SUMPRODUCT(C6:C9,D6:D9)/SUM(C6:C9) -> 0.04230093449

Sheet Water Matt
D3: Average | E3: Average
C4: Avg. | D4: Annual | E4: Annual
C5: Sq Feet | D5: Cost/Sq.Ft. | E5: Cost | H5: School Type Sorted | I5: COSTS | J5: % | K5: SQU FT | L5: COST/ ft2
B6: High School | C6: =INDEX('Avg. Costs'!$F$4:$F$8,MATCH('Water Matt'!B6,'Avg. Costs'!$E$4:$E$8,0)) -> 545728.8333 | D6: =E6/C6 -> 0.2181268735 | E6: =I6/G6 -> 119038.1242 | G6: 12 | H6: High School | I6: 1428457.49 | J6: 0.3559952126 | K6: 6383096 | L6: 0.2237875617
B7: Middle School | C7: =INDEX('Avg. Costs'!$F$4:$F$8,MATCH('Water Matt'!B7,'Avg. Costs'!$E$4:$E$8,0)) -> 219906.8889 | D7: =E7/C7 -> 0.2002165336 | E7: =I7/G7 -> 44028.995 | G7: 18 | H7: Middle School | I7: 792521.91 | J7: 0.1975095568 | K7: 3928363 | L7: 0.2017435532
B8: Elementary School | C8: =INDEX('Avg. Costs'!$F$4:$F$8,MATCH('Water Matt'!B8,'Avg. Costs'!$E$4:$E$8,0)) -> 95801.94643 | D8: 0.2014693465 | E8: 19301.15554 | G8: 56 | H8: Elementary School | I8: 1080864.71 | J8: 0.2693693476 | K8: 5351220 | L8: 0.2019847268
B9: Special School | C9: =INDEX('Avg. Costs'!$F$4:$F$8,MATCH('Water Matt'!B9,'Avg. Costs'!$E$4:$E$8,0)) -> 60443.4 | D9: 0.1656261891 | E9: 10011.01 | G9: 3 | H9: Special School | I9: 30033.03 | J9: 0.007484727388 | K9: 284892 | L9: 0.1054190009
C10: Wt. Avg. | D10: =SUMPRODUCT(C6:C9,D6:D9)/SUM(C6:C9) -> 0.2086812402

Sheet ALL Matt
D3: Average | E3: Average
C4: Avg. | D4: Annual | E4: Annual
C5: Sq Feet | D5: Cost/Sq.Ft. | E5: Cost | H5: School Type Sorted | I5: COSTS | J5: % | K5: SQU FT | L5: COST/ ft2
B6: High School | C6: =INDEX('Avg. Costs'!$F$4:$F$8,MATCH(B6,'Avg. Costs'!$E$4:$E$8,0)) -> 545728.8333 | D6: =E6/C6 -> 0.9249563428 | E6: =I6/G6 -> 504775.3458 | G6: 12 | H6: High School | I6: 6057304.15 | J6: 0.3392194966 | K6: 6383096 | L6: 0.9489602146
B7: Middle School | C7: =INDEX('Avg. Costs'!$F$4:$F$8,MATCH(B7,'Avg. Costs'!$E$4:$E$8,0)) -> 219906.8889 | D7: =E7/C7 -> 0.9086559337 | E7: =I7/G7 -> 199819.6994 | G7: 18 | H7: Middle School | I7: 3596754.59 | J7: 0.2014244706 | K7: 3928363 | L7: 0.915586108
B8: Elementary School | C8: =INDEX('Avg. Costs'!$F$4:$F$8,MATCH(B8,'Avg. Costs'!$E$4:$E$8,0)) -> 95801.94643 | D8: 0.9635669366 | E8: 92311.58804 | G8: 56 | H8: Elementary School | I8: 5169448.93 | J8: 0.2894980705 | K8: 5351220 | L8: 0.9660318451
B9: Special School | C9: =INDEX('Avg. Costs'!$F$4:$F$8,MATCH(B9,'Avg. Costs'!$E$4:$E$8,0)) -> 60443.4 | D9: =E9/C9 -> 1.702506863 | E9: =I9/G9 -> 102905.3033 | G9: 3 | H9: Special School | I9: 308715.91 | J9: 0.01728862428 | K9: 284892 | L9: 1.083624356
C10: Wt. Avg. | D10: =SUMPRODUCT(C6:C9,D6:D9)/SUM(C6:C9) -> 0.9760607602

Sheet %
D4: Utility | E4: Electric
D6: Row Labels | E6: Sum of Area | F6: Sum of Mmbtus | G6: kWh/SF
D7: Administration | E7: 1252106 | F7: 94970.97962 | G7: =ROUND((F7/E7*1000000)/3412,1)*2 -> 44.4
D8: Elementary School | E8: 5351220 | F8: 172333.7191 | G8: =ROUND((F8/E8*1000000)/3412,1)*2 -> 18.8
D9: High School | E9: 6383096 | F9: 218465.573 | G9: =ROUND((F9/E9*1000000)/3412,1)*2 -> 20
D10: Middle School | E10: 3928363 | F10: 127981.1891 | G10: =ROUND((F10/E10*1000000)/3412,1)*2 -> 19
D11: Special School | E11: 284892 | F11: 11411.46812 | G11: =ROUND((F11/E11*1000000)/3412,1)*2 -> 23.4
D12: Grand Total | E12: 17199677 | F12: 625162.9289 | G12: =SUMPRODUCT(G7:G11,E7:E11)/SUM(E7:E11) -> 21.23084824 | H12: ALL
G13: =SUMPRODUCT(F8:F10,G8:G10)/SUM(F8:F10) -> 19.3546757 | H13: Schools Only
D16: Utility | E16: (Multiple Items)
D18: Row Labels | E18: Sum of Area | F18: Sum of Mmbtus
D19: Administration | E19: 2425975 | F19: 138536.8896
D20: Elementary School | E20: 10616315 | F20: 208334.2791
D21: High School | E21: 12210350 | F21: 275828.333
D22: Middle School | E22: 7874474 | F22: 169152.3491
D23: Special School | E23: 607661 | F23: 17035.26812
D24: Grand Total | E24: 33734775 | F24: 808887.1189 | I24: kbtus
H25: ALL | I25: 41.24
F26: =(F22*1000)/((SUM(E8:E10)/2)) -> 21.59941465 | H26: Electric | I26: 33.03 | J26: =I26/I25 -> 0.8009214355
H27: Gas | I27: =I25-I26 -> 8.21 | J27: =I27/I25 -> 0.1990785645
D30: Utility | E30: (Multiple Items)
D32: Row Labels | E32: Sum of Area | F32: Sum of Mmbtus
D33: Administration | E33: 2425975 | F33: 138536.8896
D34: Elementary School | E34: 10616315 | F34: 208334.2791
D35: High School | E35: 12210350 | F35: 275828.333
D36: Middle School | E36: 7874474 | F36: 169152.3491
D37: Special School | E37: 607661 | F37: 17035.26812
D38: Grand Total | E38: 33734775 | F38: 808887.1189
F40: kBtus/SF
F41: ALL
F42: =F38*1000/(E12/2) -> 94.05840806
